BodyName,ServiceAreaCategorisation,ServiceDivisionCategorisation,ExpensesType,Date,TransactionNumber,Amount,CapitalorRevenue,SupplierName
Peterborough City Council,Deficit/(Surplus) on Trading Undertakings,Trading Account Surpluses & Deficits,Supplies and Services,03/05/2011,374789,708,REVENUE,M O 8 Specialities Ltd
Peterborough City Council,Deficit/(Surplus) on Trading Undertakings,Trading Account Surpluses & Deficits,Supplies and Services,03/05/2011,380911,8119.3,REVENUE,Dieselprods limited
Peterborough City Council,Children's & Education Services - Education,Secondary,Employees,03/05/2011,381102,3000,REVENUE,Redacted Personal Data
Peterborough City Council,Children's & Education Services - Education,Secondary,Supplies and Services,03/05/2011,381617,29311.92,REVENUE,IIC by Education (P'boro) Ltd
Peterborough City Council,Children's & Education Services - Education,Secondary,Supplies and Services,03/05/2011,381624,2840.72,REVENUE,IIC by Education (P'boro) Ltd
Peterborough City Council,More than one Service Area Category,More than one Service Division,Balance Sheet,03/05/2011,381627,5532.98,Balance Sheet,IIC by Education (P'boro) Ltd
Peterborough City Council,More than one Service Area Category,More than one Service Division,Transport,03/05/2011,381637,1720.1,REVENUE,ARVAL PHH Business Solutions Ltd
Peterborough City Council,"Cultural, Environmental and Planning Services",Economic Development,Employees,03/05/2011,381652,3200,REVENUE,Pauline Heron Coaching
Peterborough City Council,Children's & Education Services - Children's Social Care,Children Looked After,Supplies and Services,03/05/2011,381661,7680,REVENUE,On Track Education Services Ltd
Peterborough City Council,Children's & Education Services - Children's Social Care,Children Looked After,Supplies and Services,03/05/2011,381662,3840,REVENUE,On Track Education Services Ltd
Peterborough City Council,Children's & Education Services - Children's Social Care,Other Children's & Families Services,Employees,03/05/2011,381737,1731.6,REVENUE,Medicare First
Peterborough City Council,Children's & Education Services - Children's Social Care,Other Children's & Families Services,Employees,03/05/2011,381739,1816.2,REVENUE,Medicare First
Peterborough City Council,Children's & Education Services - Children's Social Care,Children Looked After,Supplies and Services - Transfer Payments,03/05/2011,381767,6768.76,REVENUE,Portsmouth City Council
Peterborough City Council,"Cultural, Environmental and Planning Services",Open Spaces,Premises,03/05/2011,381815,14367.6,REVENUE,L A Jackson
Peterborough City Council,"Cultural, Environmental and Planning Services","Cemetery, Crematorium & Mortuary Services",Supplies and Services,03/05/2011,381852,4224,REVENUE,JAT Ingledew
Peterborough City Council,Children's & Education Services - Education,Primary,Supplies and Services,03/05/2011,381854,2250,REVENUE,TS & SC Snitch
Peterborough City Council,Deficit/(Surplus) on Trading Undertakings,Trading Account Surpluses & Deficits,Transport,03/05/2011,382286,1827.71,REVENUE,Intercounty Truck & Van Ltd
Peterborough City Council,Children's & Education Services - Education,Non-School Funding,Supplies and Services,03/05/2011,382319,18574,REVENUE,Wilds Lodge School
Peterborough City Council,Adult Social Care,Other Adult Services,Supplies and Services,03/05/2011,382372,6656,REVENUE,Peterborough PCT
Peterborough City Council,Children's & Education Services - Children's Social Care,Support Services & Management Costs,Supplies and Services,03/05/2011,382379,1645,REVENUE,Anglia Ruskin University
Peterborough City Council,Children's & Education Services - Children's Social Care,Support Services & Management Costs,Supplies and Services,03/05/2011,382381,1645,REVENUE,Anglia Ruskin University
Peterborough City Council,Children's & Education Services - Children's Social Care,Support Services & Management Costs,Supplies and Services,03/05/2011,382382,1645,REVENUE,Anglia Ruskin University
Peterborough City Council,Children's & Education Services - Children's Social Care,Support Services & Management Costs,Supplies and Services,03/05/2011,382383,1645,REVENUE,Anglia Ruskin University
Peterborough City Council,Children's & Education Services - Children's Social Care,Support Services & Management Costs,Supplies and Services,03/05/2011,382384,1645,REVENUE,Anglia Ruskin University
Peterborough City Council,Children's & Education Services - Children's Social Care,Support Services & Management Costs,Supplies and Services,03/05/2011,382387,1645,REVENUE,Anglia Ruskin University
Peterborough City Council,Children's & Education Services - Children's Social Care,Support Services & Management Costs,Supplies and Services,03/05/2011,382388,1645,REVENUE,Anglia Ruskin University
Peterborough City Council,Children's & Education Services - Children's Social Care,Support Services & Management Costs,Supplies and Services,03/05/2011,382389,1645,REVENUE,Anglia Ruskin University
Peterborough City Council,Children's & Education Services - Children's Social Care,Support Services & Management Costs,Supplies and Services,03/05/2011,382391,1645,REVENUE,Anglia Ruskin University
Peterborough City Council,Children's & Education Services - Children's Social Care,Support Services & Management Costs,Supplies and Services,03/05/2011,382392,1645,REVENUE,Anglia Ruskin University
Peterborough City Council,Children's & Education Services - Children's Social Care,Support Services & Management Costs,Supplies and Services,03/05/2011,382394,1645,REVENUE,Anglia Ruskin University
Peterborough City Council,Children's & Education Services - Children's Social Care,Support Services & Management Costs,Supplies and Services,03/05/2011,382395,1645,REVENUE,Anglia Ruskin University
Peterborough City Council,"Cultural, Environmental and Planning Services",Open Spaces,Premises,03/05/2011,382427,12108,REVENUE,Monsterplay Systems
Peterborough City Council,Children's & Education Services - Children's Social Care,Family Support Services,Supplies and Services,03/05/2011,382618,741.86,REVENUE,Sahara Community Care Services
Peterborough City Council,Deficit/(Surplus) on Trading Undertakings,Trading Account Surpluses & Deficits,Supplies and Services,03/05/2011,382798,1894.08,REVENUE,Dieselprods limited
Peterborough City Council,Children's & Education Services - Children's Social Care,Youth Justice,Employees,03/05/2011,382825,15484.62,REVENUE,Cambs & P'boro NHS Foundation Trust
Peterborough City Council,Deficit/(Surplus) on Trading Undertakings,Trading Account Surpluses & Deficits,Supplies and Services,03/05/2011,382852,3148.2,REVENUE,Rowes Precision Products Ltd
Peterborough City Council,Children's & Education Services - Education,Secondary,Employees,03/05/2011,382858,1783.54,REVENUE,Mana Resourcing Ltd
Peterborough City Council,"Cultural, Environmental and Planning Services",Economic Development,Employees,03/05/2011,382860,1288.6,REVENUE,Randstad CPE
Peterborough City Council,Children's & Education Services - Children's Social Care,Other Children's & Families Services,Third Party Payments,03/05/2011,382883,"68,134.83",REVENUE,Ormiston Children & Families Trust
Peterborough City Council,More than one Service Area Category,More than one Service Division,Balance Sheet,03/05/2011,382936,531,Balance Sheet,Barnack Parish Council
Peterborough City Council,More than one Service Area Category,More than one Service Division,Balance Sheet,03/05/2011,382939,22910,Balance Sheet,Barnack Parish Council
Peterborough City Council,Housing Services,Supporting People,Third Party Payments,03/05/2011,382951,1094.07,REVENUE,Accent Nene Housing Soc. Ltd
Peterborough City Council,Housing Services,Supporting People,Third Party Payments,03/05/2011,382952,1041.65,REVENUE,Anchor Trust
Peterborough City Council,Housing Services,Supporting People,Third Party Payments,03/05/2011,382954,19236,REVENUE,Cross Keys Homes
Peterborough City Council,Housing Services,Supporting People,Third Party Payments,03/05/2011,382955,548.08,REVENUE,Hanover Housing Association
Peterborough City Council,Housing Services,Supporting People,Third Party Payments,03/05/2011,382957,1415.93,REVENUE,Minster General Housing
Peterborough City Council,Housing Services,Supporting People,Third Party Payments,03/05/2011,382958,2933.36,REVENUE,NACRO
Peterborough City Council,Housing Services,Supporting People,Third Party Payments,03/05/2011,382959,2017.14,REVENUE,Peterborough Womens Aid
Peterborough City Council,Housing Services,Supporting People,Third Party Payments,03/05/2011,382960,1777.8,REVENUE,Peterborough PCT
Peterborough City Council,Housing Services,Supporting People,Third Party Payments,03/05/2011,382962,1777.8,REVENUE,Peterborough Provider Services
Peterborough City Council,Housing Services,Supporting People,Third Party Payments,03/05/2011,382963,1777.8,REVENUE,Peterborough Provider Services
Peterborough City Council,Housing Services,Supporting People,Third Party Payments,03/05/2011,382964,5176.38,REVENUE,Springboard Housing Association
Peterborough City Council,Housing Services,Supporting People,Third Party Payments,03/05/2011,382966,2222.25,REVENUE,Terrence Higgins Trust Ltd
Peterborough City Council,Housing Services,Supporting People,Third Party Payments,03/05/2011,382967,23153.64,REVENUE,YMCA Cambridge & Peterborough
Peterborough City Council,"Cultural, Environmental and Planning Services",Economic Development,Third Party Payments,03/05/2011,383004,19689.96,REVENUE,Railworld
Peterborough City Council,Children's & Education Services - Children's Social Care,Support Services & Management Costs,Employees,03/05/2011,383139,1320,REVENUE,Young Lives
Peterborough City Council,Children's & Education Services - Children's Social Care,Support Services & Management Costs,Employees,03/05/2011,383140,1776,REVENUE,Blue Group International Ltd
Peterborough City Council,Children's & Education Services - Education,Non-School Funding,Employees,03/05/2011,383152,985.2,REVENUE,Mana Resourcing Ltd
Peterborough City Council,Children's & Education Services - Children's Social Care,Other Children's & Families Services,Third Party Payments,03/05/2011,383154,4985,REVENUE,Peterborough Provider Services
Peterborough City Council,Support Services,Support Services,Supplies and Services,03/05/2011,383167,625.03,REVENUE,AXA PPP Healthcare OHS Ltd
Peterborough City Council,Adult Social Care,Other Adult Services,Supplies and Services,03/05/2011,383175,4623.6,REVENUE,Frontier Medical
Peterborough City Council,"Cultural, Environmental and Planning Services",Flood Defence & Land Drainage,Supplies and Services,03/05/2011,383187,2280,REVENUE,Philip G Wright Excavator Hire
Peterborough City Council,"Cultural, Environmental and Planning Services",Flood Defence & Land Drainage,Supplies and Services,03/05/2011,383188,3240,REVENUE,Philip G Wright Excavator Hire
Peterborough City Council,"Cultural, Environmental and Planning Services","Cemetery, Crematorium & Mortuary Services",Supplies and Services,03/05/2011,383282,666.4,REVENUE,Redacted Personal Data
Peterborough City Council,Support Services,Support Services,Premises,03/05/2011,383952,1113.4,REVENUE,E.ON Energy
Peterborough City Council,Children's & Education Services - Education,Secondary,Premises,03/05/2011,383966,-8207.81,REVENUE,Eastern Shires Purchasing Organisation
Peterborough City Council,Children's & Education Services - Education,Secondary,Premises,03/05/2011,383967,-6579.35,REVENUE,Eastern Shires Purchasing Organisation
Peterborough City Council,Children's & Education Services - Children's Social Care,Other Children's & Families Services,Supplies and Services,03/05/2011,383988,1150,REVENUE,Stagecoach in Peterborough
Peterborough City Council,Central Services to the Public,Local Tax,Supplies and Services,03/05/2011,383989,507.39,REVENUE,Equita Ltd
Peterborough City Council,"Highways, Roads & Transport Services","Environmental, Safety & Routine Maintenance",Supplies and Services,03/05/2011,383991,4948.73,REVENUE,British Telecom PLC
Peterborough City Council,Support Services,Support Services,Premises,03/05/2011,383993,733.24,REVENUE,Zurich Insurance Company
Peterborough City Council,"Highways, Roads & Transport Services",Street Lighting,Premises,03/05/2011,383996,2266.28,REVENUE,Southern Electric
Peterborough City Council,"Highways, Roads & Transport Services",Street Lighting,Premises,03/05/2011,383998,2518.15,REVENUE,Southern Electric
Peterborough City Council,"Cultural, Environmental and Planning Services",Economic Development,Supplies and Services,03/05/2011,384000,6803.28,REVENUE,Linstock Communications Ltd
Peterborough City Council,"Cultural, Environmental and Planning Services",Economic Development,Supplies and Services,03/05/2011,384001,3315,REVENUE,Linstock Communications Ltd
Peterborough City Council,"Highways, Roads & Transport Services",Public Transport,Supplies and Services,03/05/2011,384004,2253.33,REVENUE,Statutory Payment of Concessionary Fares to Bus Provider
Peterborough City Council,"Highways, Roads & Transport Services",Public Transport,Supplies and Services,03/05/2011,384005,1872,REVENUE,R Kime & Co Ltd
Peterborough City Council,"Highways, Roads & Transport Services",Public Transport,Supplies and Services,03/05/2011,384006,2392,REVENUE,R Kime & Co Ltd
Peterborough City Council,"Highways, Roads & Transport Services",Public Transport,Supplies and Services,03/05/2011,384007,3945.21,REVENUE,R Kime & Co Ltd
Peterborough City Council,Children's & Education Services - Education,Secondary,Premises,03/05/2011,384009,5980.96,REVENUE,Npower Ltd
Peterborough City Council,Support Services,Support Services,Premises,03/05/2011,384021,4049.12,REVENUE,Zurich Insurance Company
Peterborough City Council,Support Services,Support Services,Premises,03/05/2011,384022,644.65,REVENUE,Zurich Insurance Company
Peterborough City Council,Support Services,Support Services,Premises,03/05/2011,384023,2954.96,REVENUE,Zurich Insurance Company
Peterborough City Council,"Highways, Roads & Transport Services",Public Transport,Supplies and Services,03/05/2011,384029,7803,REVENUE,Veolia Transport UK Ltd
Peterborough City Council,Children's & Education Services - Education,Secondary,Premises,03/05/2011,384037,21299.6,REVENUE,Eastern Shires Purchasing Organisation
Peterborough City Council,Children's & Education Services - Education,Secondary,Premises,03/05/2011,384046,5179.83,REVENUE,IIC by Education (P'boro) Ltd
Peterborough City Council,Support Services,Support Services,Supplies and Services,03/05/2011,384084,16969.56,REVENUE,Edenred
Peterborough City Council,Capital,Capital,Capital Pending Update to BS,03/05/2011,384129,15000,CAPITAL,Buckles Solicitors LLP
Peterborough City Council,Capital,Capital,Capital Pending Update to BS,03/05/2011,384136,900,CAPITAL,Davitt Jones Bould
Peterborough City Council,Children's & Education Services - Children's Social Care,Children Looked After,Supplies and Services,03/05/2011,384139,9600,REVENUE,On Track Education Services Ltd
Peterborough City Council,Children's & Education Services - Children's Social Care,Children Looked After,Supplies and Services,03/05/2011,384140,9600,REVENUE,On Track Education Services Ltd
Peterborough City Council,Children's & Education Services - Children's Social Care,Other Children's & Families Services,Supplies and Services,03/05/2011,384152,600.94,REVENUE,Danwood Group Limited
Peterborough City Council,Children's & Education Services - Children's Social Care,Other Children's & Families Services,Third Party Payments,03/05/2011,384170,17149.65,REVENUE,Ormiston Children & Families Trust
Peterborough City Council,Housing Services,Homelessness,Employees,03/05/2011,384174,608.91,REVENUE,Anne Corder Recruitment
Peterborough City Council,Housing Services,Homelessness,Employees,03/05/2011,384175,608.91,REVENUE,Anne Corder Recruitment
Peterborough City Council,"Highways, Roads & Transport Services",Public Transport,Supplies and Services,03/05/2011,384198,1400,REVENUE,Stagecoach in Peterborough
Peterborough City Council,"Highways, Roads & Transport Services",Public Transport,Supplies and Services,03/05/2011,384199,2400,REVENUE,Stagecoach in Peterborough
Peterborough City Council,"Highways, Roads & Transport Services",Public Transport,Supplies and Services,03/05/2011,384200,1229.12,REVENUE,Stagecoach in Peterborough
Peterborough City Council,"Highways, Roads & Transport Services",Public Transport,Supplies and Services,03/05/2011,384201,3687.36,REVENUE,Stagecoach in Peterborough
Peterborough City Council,"Highways, Roads & Transport Services",Public Transport,Supplies and Services,03/05/2011,384202,7922.88,REVENUE,Stagecoach in Peterborough
Peterborough City Council,"Highways, Roads & Transport Services",Public Transport,Supplies and Services,03/05/2011,384203,3600.72,REVENUE,Stagecoach in Peterborough
Peterborough City Council,"Cultural, Environmental and Planning Services",Tourism,Supplies and Services,03/05/2011,384250,743.16,REVENUE,Clarity Retail Systems Limited
Peterborough City Council,Children's & Education Services - Education,Non-School Funding,Supplies and Services,03/05/2011,384337,5550,REVENUE,Innovative Solutions
Peterborough City Council,Children's & Education Services - Children's Social Care,Other Children's & Families Services,Supplies and Services,03/05/2011,384397,2344.55,REVENUE,Social Support Limited
Peterborough City Council,Housing Services,Private Sector Housing Renewal,Supplies and Services,03/05/2011,384454,2001.75,REVENUE,B S Builders & Carpenters
Peterborough City Council,Children's & Education Services - Children's Social Care,Family Support Services,Employees,03/05/2011,384459,1361.77,REVENUE,Advantage Healthcare Nursing & Care Ltd
Peterborough City Council,Children's & Education Services - Children's Social Care,Children Looked After,Supplies and Services - Transfer Payments,03/05/2011,384469,3596.38,REVENUE,IAS TACT
Peterborough City Council,Children's & Education Services - Children's Social Care,Children Looked After,Supplies and Services - Transfer Payments,03/05/2011,384487,2879.8,REVENUE,IAS TACT
Peterborough City Council,Support Services,Support Services,Premises,03/05/2011,384501,733.22,REVENUE,British Gas Business
Peterborough City Council,Support Services,Support Services,Premises,03/05/2011,384504,1443.1,REVENUE,British Gas Business
Peterborough City Council,Children's & Education Services - Children's Social Care,Support Services & Management Costs,Supplies and Services,03/05/2011,384507,2800,REVENUE,Redacted Personal Data
Peterborough City Council,Children's & Education Services - Children's Social Care,Support Services & Management Costs,Supplies and Services,03/05/2011,384508,3150,REVENUE,Redacted Personal Data
Peterborough City Council,Children's & Education Services - Children's Social Care,Family Support Services,Premises,03/05/2011,384522,778.8,REVENUE,Easy Clean
Peterborough City Council,Housing Services,Housing Benefits,Employees,03/05/2011,384524,852,REVENUE,NorthgateArinso HR Ltd
Peterborough City Council,Children's & Education Services - Children's Social Care,Family Support Services,Employees,03/05/2011,384531,1187.86,REVENUE,Advantage Healthcare Nursing & Care Ltd
Peterborough City Council,"Cultural, Environmental and Planning Services",Regulatory services,Supplies and Services,03/05/2011,384533,9870,REVENUE,Acclaim Safety Systems Ltd
Peterborough City Council,Children's & Education Services - Children's Social Care,Children Looked After,Supplies and Services,03/05/2011,384617,1300,REVENUE,Barford Care
Peterborough City Council,Children's & Education Services - Education,Non-School Funding,Supplies and Services,03/05/2011,384620,565,REVENUE,Cropley Coaches
Peterborough City Council,Children's & Education Services - Children's Social Care,Children Looked After,Supplies and Services,03/05/2011,384642,18755,REVENUE,Knossington Grange School Ltd
Peterborough City Council,Children's & Education Services - Children's Social Care,Other Children's & Families Services,Supplies and Services,03/05/2011,384659,1610.45,REVENUE,Social Support Limited
Peterborough City Council,Children's & Education Services - Children's Social Care,Other Children's & Families Services,Supplies and Services,03/05/2011,384674,1200,REVENUE,Fulbridge Associates
Peterborough City Council,Children's & Education Services - Children's Social Care,Other Children's & Families Services,Supplies and Services,03/05/2011,384676,1120,REVENUE,Fulbridge Associates
Peterborough City Council,Children's & Education Services - Children's Social Care,Other Children's & Families Services,Supplies and Services,03/05/2011,384678,840,REVENUE,Fulbridge Associates
Peterborough City Council,"Cultural, Environmental and Planning Services","Cemetery, Crematorium & Mortuary Services",Premises,03/05/2011,384695,633.17,REVENUE,Yaboo Company Ltd T/a Wesley Music
Peterborough City Council,Capital,Capital,Capital Pending Update to BS,03/05/2011,384714,5459.88,CAPITAL,Ringway Infrastructure Services
Peterborough City Council,Children's & Education Services - Education,Non-School Funding,Supplies and Services,03/05/2011,384716,2000,REVENUE,Peterborough Mediation
Peterborough City Council,Capital,Capital,Capital Pending Update to BS,03/05/2011,384717,17553.97,CAPITAL,The K A Wing Group Ltd
Peterborough City Council,More than one Service Area Category,More than one Service Division,Third Party Payments,03/05/2011,384725,743767.8,REVENUE,Enterprise Managed Services Limited
Peterborough City Council,Children's & Education Services - Children's Social Care,Children Looked After,Supplies and Services - Transfer Payments,03/05/2011,384730,3493.09,REVENUE,IAS TACT
Peterborough City Council,Corporate & Democratic Core,Democratic Representation & Managemetn,Supplies and Services,03/05/2011,384748,555.72,REVENUE,Johnston Press Midlands Division
Peterborough City Council,Corporate & Democratic Core,Democratic Representation & Managemetn,Supplies and Services,03/05/2011,384750,555.72,REVENUE,Johnston Press Midlands Division
Peterborough City Council,Children's & Education Services - Children's Social Care,Children Looked After,Premises,03/05/2011,384755,954,REVENUE,Bull & Co Ltd
Peterborough City Council,Children's & Education Services - Children's Social Care,Family Support Services,Employees,03/05/2011,384761,3686.09,REVENUE,Peterborough Provider Services
Peterborough City Council,Children's & Education Services - Children's Social Care,Family Support Services,Employees,03/05/2011,384762,3891.5,REVENUE,Peterborough Provider Services
Peterborough City Council,Children's & Education Services - Children's Social Care,Family Support Services,Employees,03/05/2011,384763,4910.74,REVENUE,Peterborough Provider Services
Peterborough City Council,"Cultural, Environmental and Planning Services",Regulatory services,Supplies and Services,03/05/2011,384764,540.48,REVENUE,Best Friends Veterinary Group
Peterborough City Council,Support Services,Support Services,Premises,03/05/2011,384769,1057.08,REVENUE,Anglian Water
Peterborough City Council,Support Services,Support Services,Premises,03/05/2011,384771,1302.19,REVENUE,British Gas Business
Peterborough City Council,Corporate & Democratic Core,Democratic Representation & Managemetn,Supplies and Services,03/05/2011,384780,681.5,REVENUE,Baileys of Peterborough Ltd
Peterborough City Council,Children's & Education Services - Children's Social Care,Family Support Services,Third Party Payments,03/05/2011,384784,36250,REVENUE,Family Action
Peterborough City Council,Housing Services,Homelessness,Supplies and Services,03/05/2011,384788,549.99,REVENUE,Renaissance Property Mngmnt
Peterborough City Council,Housing Services,Homelessness,Supplies and Services,03/05/2011,384790,700,REVENUE,Letsrush
Peterborough City Council,Children's & Education Services - Education,Non-School Funding,Supplies and Services,03/05/2011,384792,1482,REVENUE,NACRO
Peterborough City Council,"Cultural, Environmental and Planning Services",Economic Development,Supplies and Services,03/05/2011,384827,642.72,REVENUE,Vivacity Culture and Leisure
Peterborough City Council,Children's & Education Services - Children's Social Care,Family Support Services,Premises,03/05/2011,384857,682.78,REVENUE,PAM Recruitment Ltd
Peterborough City Council,Support Services,Support Services,Employees,04/05/2011,371951,1464,REVENUE,Venn Group Ltd
Peterborough City Council,Support Services,Support Services,Employees,04/05/2011,372248,1385.83,REVENUE,Venn Group Ltd
Peterborough City Council,Children's & Education Services - Children's Social Care,Children Looked After,Supplies and Services - Transfer Payments,04/05/2011,375473,5706.68,REVENUE,Tree House Care Fostering Solutions Ltd
Peterborough City Council,Support Services,Support Services,Employees,04/05/2011,375482,1413.44,REVENUE,Venn Group Ltd
Peterborough City Council,Children's & Education Services - Children's Social Care,Children Looked After,Supplies and Services,04/05/2011,377823,794.1,REVENUE,Redacted Personal Data
Peterborough City Council,Capital,Capital,Capital Pending Update to BS,04/05/2011,380561,25515.78,CAPITAL,Alban Shipping Ltd
Peterborough City Council,Support Services,Support Services,Employees,04/05/2011,381021,1416.31,REVENUE,Venn Group Ltd
Peterborough City Council,Housing Services,Housing Benefits,Employees,04/05/2011,381717,1076.4,REVENUE,The Synergy Group
Peterborough City Council,Housing Services,Housing Benefits,Employees,04/05/2011,381719,1377,REVENUE,The Synergy Group
Peterborough City Council,Housing Services,Housing Benefits,Employees,04/05/2011,381721,1065.6,REVENUE,The Synergy Group
Peterborough City Council,Central Services to the Public,Local Tax,Employees,04/05/2011,381732,1420.8,REVENUE,The Synergy Group
Peterborough City Council,Capital,Capital,Capital Pending Update to BS,04/05/2011,381858,1914,CAPITAL,Alban Shipping Ltd
Peterborough City Council,Deficit/(Surplus) on Trading Undertakings,Trading Account Surpluses & Deficits,Transport,04/05/2011,382287,985,REVENUE,Apex Training Services
Peterborough City Council,Children's & Education Services - Children's Social Care,Children Looked After,Employees,04/05/2011,382345,1527.6,REVENUE,Care Recruitment UK Ltd
Peterborough City Council,Children's & Education Services - Children's Social Care,Support Services & Management Costs,Supplies and Services,04/05/2011,382700,1018.56,REVENUE,C S L
Peterborough City Council,Children's & Education Services - Education,Non-School Funding,Supplies and Services,04/05/2011,382879,8260.55,REVENUE,Ormiston Children & Families Trust
Peterborough City Council,Children's & Education Services - Children's Social Care,Children Looked After,Supplies and Services - Transfer Payments,04/05/2011,382891,2785.71,REVENUE,Nene Valley Fostering Agency
Peterborough City Council,Children's & Education Services - Children's Social Care,Children Looked After,Supplies and Services - Transfer Payments,04/05/2011,382892,2785.71,REVENUE,Nene Valley Fostering Agency
Peterborough City Council,Children's & Education Services - Children's Social Care,Children Looked After,Supplies and Services - Transfer Payments,04/05/2011,382893,2914.29,REVENUE,Nene Valley Fostering Agency
Peterborough City Council,Children's & Education Services - Children's Social Care,Children Looked After,Supplies and Services - Transfer Payments,04/05/2011,382894,3012.09,REVENUE,Nene Valley Fostering Agency
Peterborough City Council,Children's & Education Services - Children's Social Care,Children Looked After,Supplies and Services - Transfer Payments,04/05/2011,382899,2747.31,REVENUE,Nene Valley Fostering Agency
Peterborough City Council,Children's & Education Services - Children's Social Care,Children Looked After,Supplies and Services - Transfer Payments,04/05/2011,382905,2793.43,REVENUE,Nene Valley Fostering Agency
Peterborough City Council,Children's & Education Services - Children's Social Care,Children Looked After,Supplies and Services - Transfer Payments,04/05/2011,382906,3135.43,REVENUE,Nene Valley Fostering Agency
Peterborough City Council,Children's & Education Services - Children's Social Care,Children Looked After,Supplies and Services - Transfer Payments,04/05/2011,382907,2850.47,REVENUE,Nene Valley Fostering Agency
Peterborough City Council,Children's & Education Services - Children's Social Care,Children Looked After,Supplies and Services - Transfer Payments,04/05/2011,382908,2785.71,REVENUE,Nene Valley Fostering Agency
Peterborough City Council,Children's & Education Services - Children's Social Care,Children Looked After,Supplies and Services - Transfer Payments,04/05/2011,382909,2785.71,REVENUE,Nene Valley Fostering Agency
Peterborough City Council,Children's & Education Services - Children's Social Care,Children Looked After,Supplies and Services - Transfer Payments,04/05/2011,382911,2914.29,REVENUE,Nene Valley Fostering Agency
Peterborough City Council,Children's & Education Services - Children's Social Care,Children Looked After,Supplies and Services - Transfer Payments,04/05/2011,382912,2910.64,REVENUE,Nene Valley Fostering Agency
Peterborough City Council,"Highways, Roads & Transport Services","Environmental, Safety & Routine Maintenance",Premises,04/05/2011,382925,2293.2,REVENUE,Richard Ching & Son Ltd
Peterborough City Council,Corporate & Democratic Core,Democratic Representation & Managemetn,Supplies and Services,04/05/2011,382992,500,REVENUE,Information Commissioner
Peterborough City Council,"Cultural, Environmental and Planning Services",Economic Development,Employees,04/05/2011,383181,1967.02,REVENUE,Hays Specialist Recruitment Ltd
Peterborough City Council,"Cultural, Environmental and Planning Services",Economic Development,Employees,04/05/2011,383182,924,REVENUE,Hays Specialist Recruitment Ltd
Peterborough City Council,"Cultural, Environmental and Planning Services",Economic Development,Employees,04/05/2011,383183,1749.6,REVENUE,Hays Specialist Recruitment Ltd
Peterborough City Council,Capital,Capital,Capital Pending Update to BS,04/05/2011,383352,27901.2,CAPITAL,Proludic Ltd
Peterborough City Council,Children's & Education Services - Children's Social Care,Children Looked After,Supplies and Services - Transfer Payments,04/05/2011,383762,1894.41,REVENUE,Redacted Personal Data
Peterborough City Council,Deficit/(Surplus) on Trading Undertakings,Trading Account Surpluses & Deficits,Premises,04/05/2011,383820,1100.29,REVENUE,Princebuild Limited
Peterborough City Council,Children's & Education Services - Education,Non-School Funding,Supplies and Services,04/05/2011,383964,2496,REVENUE,ACAS
Peterborough City Council,Support Services,Support Services,Supplies and Services,04/05/2011,383970,1585.2,REVENUE,The Freetime Initiative Ltd
Peterborough City Council,Corporate & Democratic Core,Corporate Management,Supplies and Services,04/05/2011,383976,500,REVENUE,Cambridgeshire Constabulary
Peterborough City Council,Support Services,Support Services,Supplies and Services,04/05/2011,384015,10152.34,REVENUE,British Telecom PLC
Peterborough City Council,More than one Service Area Category,More than one Service Division,Balance Sheet,04/05/2011,384036,694.53,Balance Sheet,Rossendales C B Ltd
Peterborough City Council,Support Services,Support Services,Supplies and Services,04/05/2011,384045,35983.97,REVENUE,British Telecom PLC
Peterborough City Council,Children's & Education Services - Children's Social Care,Family Support Services,Employees,04/05/2011,384104,1187.86,REVENUE,Advantage Healthcare Nursing & Care Ltd
Peterborough City Council,Support Services,Support Services,Supplies and Services,04/05/2011,384151,3600,REVENUE,Redacted Personal Data
Peterborough City Council,Support Services,Support Services,Supplies and Services,04/05/2011,384204,9660,REVENUE,Ntrinsic Consulting Europe Ltd
Peterborough City Council,"Highways, Roads & Transport Services",Street Lighting,Supplies and Services,04/05/2011,384210,525.6,REVENUE,UK Power Networks (operations) Ltd
Peterborough City Council,"Highways, Roads & Transport Services",Street Lighting,Supplies and Services,04/05/2011,384211,525.6,REVENUE,UK Power Networks (operations) Ltd
Peterborough City Council,"Highways, Roads & Transport Services",Street Lighting,Supplies and Services,04/05/2011,384212,525.6,REVENUE,UK Power Networks (operations) Ltd
Peterborough City Council,"Highways, Roads & Transport Services",Street Lighting,Supplies and Services,04/05/2011,384213,1274.4,REVENUE,UK Power Networks (operations) Ltd
Peterborough City Council,"Highways, Roads & Transport Services",Street Lighting,Supplies and Services,04/05/2011,384217,525.6,REVENUE,UK Power Networks (operations) Ltd
Peterborough City Council,"Highways, Roads & Transport Services",Street Lighting,Supplies and Services,04/05/2011,384218,525.6,REVENUE,UK Power Networks (operations) Ltd
Peterborough City Council,Children's & Education Services - Children's Social Care,Children Looked After,Supplies and Services - Transfer Payments,04/05/2011,384251,14637.85,REVENUE,Oracle Care Ltd (Region 2)
Peterborough City Council,Support Services,Support Services,Supplies and Services,04/05/2011,384264,713.75,REVENUE,O2 (UK) Ltd
Peterborough City Council,Corporate & Democratic Core,Corporate Management,Supplies and Services,04/05/2011,384265,2153,REVENUE,Everything Everywhere Ltd
Peterborough City Council,Children's & Education Services - Education,Non-School Funding,Supplies and Services,04/05/2011,384324,7580,REVENUE,Redacted Personal Data
Peterborough City Council,"Highways, Roads & Transport Services","Transport planning, policy and strategy",Employees,04/05/2011,384339,1068,REVENUE,Hays Specialist Recruitment Ltd
Peterborough City Council,Children's & Education Services - Children's Social Care,Other Children's & Families Services,Supplies and Services,04/05/2011,384340,2931.43,REVENUE,Peterborough Diocesan Family Care
Peterborough City Council,Children's & Education Services - Children's Social Care,Support Services & Management Costs,Supplies and Services,04/05/2011,384386,2002.5,REVENUE,Cambs & P'boro NHS Foundation Trust
Peterborough City Council,Support Services,Support Services,Employees,04/05/2011,384494,1311.97,REVENUE,Venn Group Ltd
Peterborough City Council,"Highways, Roads & Transport Services",Public Transport,Employees,04/05/2011,384615,1872,REVENUE,Marks Specialised Transport Ltd
Peterborough City Council,"Highways, Roads & Transport Services",Regulatory services,Supplies and Services,04/05/2011,384618,550,REVENUE,Unity Automotive Peterborough Ltd
Peterborough City Council,Children's & Education Services - Children's Social Care,Other Children's & Families Services,Supplies and Services,04/05/2011,384661,1584.88,REVENUE,Social Support Limited
Peterborough City Council,Children's & Education Services - Children's Social Care,Children Looked After,Supplies and Services - Transfer Payments,04/05/2011,384728,5168.59,REVENUE,Key2
Peterborough City Council,Adult Social Care,Other Adult Services,Supplies and Services,04/05/2011,384733,126158,REVENUE,CRI
Peterborough City Council,"Cultural, Environmental and Planning Services",Economic Development,Employees,04/05/2011,384794,12563.77,REVENUE,SFS Services Ltd
Peterborough City Council,Children's & Education Services - Education,Non-School Funding,Transport,04/05/2011,384965,807.6,REVENUE,Goldstar Cabs Ltd
Peterborough City Council,Housing Services,Homelessness,Supplies and Services,04/05/2011,384988,550,REVENUE,Redacted Personal Data
Peterborough City Council,Housing Services,Homelessness,Supplies and Services,04/05/2011,384989,600,REVENUE,Redacted Personal Data
Peterborough City Council,More than one Service Area Category,More than one Service Division,Balance Sheet,04/05/2011,384992,8396.12,Balance Sheet,The Prudential Assurance Company Ltd
Peterborough City Council,More than one Service Area Category,More than one Service Division,Balance Sheet,04/05/2011,384993,844019.69,Balance Sheet,Teachers Pensions
Peterborough City Council,More than one Service Area Category,More than one Service Division,Balance Sheet,04/05/2011,384994,4577.97,Balance Sheet,The Prudential Assurance Company Ltd
Peterborough City Council,Children's & Education Services - Education,Non-School Funding,Employees,04/05/2011,384995,23555.1,REVENUE,Teachers Pensions
Peterborough City Council,More than one Service Area Category,More than one Service Division,More than one Expenses Type,06/05/2011,369724,1478.7,"Mixture of Capital, Revenue and/or Balance Sheet",Movement 2
Peterborough City Council,Children's & Education Services - Children's Social Care,Other Children's & Families Services,Employees,06/05/2011,372250,1776,REVENUE,Frontline Staffing Ltd
Peterborough City Council,"Highways, Roads & Transport Services","Transport planning, policy and strategy",Transport,06/05/2011,373896,6000,REVENUE,Atkins Limited
Peterborough City Council,Capital,Capital,Capital Pending Update to BS,06/05/2011,376913,48000,CAPITAL,Atkins Limited
Peterborough City Council,Capital,Capital,Capital Pending Update to BS,06/05/2011,376914,9234.78,CAPITAL,Atkins Limited
Peterborough City Council,Capital,Capital,Capital Pending Update to BS,06/05/2011,376944,3584,CAPITAL,Atkins Limited
Peterborough City Council,Children's & Education Services - Children's Social Care,Other Children's & Families Services,Employees,06/05/2011,377221,1776,REVENUE,Medicare First
Peterborough City Council,Children's & Education Services - Children's Social Care,Other Children's & Families Services,Employees,06/05/2011,377224,1776,REVENUE,Medicare First
Peterborough City Council,Capital,Capital,Capital Pending Update to BS,06/05/2011,377658,1962.14,CAPITAL,Atkins Limited
Peterborough City Council,Capital,Capital,Capital Pending Update to BS,06/05/2011,377659,2446.51,CAPITAL,Atkins Limited
Peterborough City Council,Capital,Capital,Capital Pending Update to BS,06/05/2011,377661,3708.82,CAPITAL,Atkins Limited
Peterborough City Council,Capital,Capital,Capital Pending Update to BS,06/05/2011,377663,1626.5,CAPITAL,Atkins Limited
Peterborough City Council,Capital,Capital,Capital Pending Update to BS,06/05/2011,377667,10571.86,CAPITAL,Atkins Limited
Peterborough City Council,Capital,Capital,Capital Pending Update to BS,06/05/2011,377676,48000,CAPITAL,Atkins Limited
Peterborough City Council,Capital,Capital,Capital Pending Update to BS,06/05/2011,377679,982.06,CAPITAL,Atkins Limited
Peterborough City Council,"Highways, Roads & Transport Services",Highways/road (structural),Transport,06/05/2011,377680,39496.8,REVENUE,Atkins Limited
Peterborough City Council,"Highways, Roads & Transport Services",Highways/road (structural),Supplies and Services,06/05/2011,377682,2523.8,REVENUE,Atkins Limited
Peterborough City Council,Capital,Capital,Capital Pending Update to BS,06/05/2011,377688,7815.6,CAPITAL,Atkins Limited
Peterborough City Council,"Highways, Roads & Transport Services","Environmental, Safety & Routine Maintenance",Transport,06/05/2011,377690,9377.8,REVENUE,Atkins Limited
Peterborough City Council,Capital,Capital,Capital Pending Update to BS,06/05/2011,377691,9665.22,CAPITAL,Atkins Limited
Peterborough City Council,Children's & Education Services - Children's Social Care,Other Children's & Families Services,Employees,06/05/2011,378345,1776,REVENUE,Medicare First
Peterborough City Council,Capital,Capital,Capital Pending Update to BS,06/05/2011,380249,29414.4,CAPITAL,Atkins Limited
Peterborough City Council,Housing Services,Private Sector Housing Renewal,Supplies and Services,06/05/2011,380944,2268.48,REVENUE,Deprez Developments
Peterborough City Council,Deficit/(Surplus) on Trading Undertakings,Trading Account Surpluses & Deficits,Supplies and Services,06/05/2011,381093,3309.36,REVENUE,Perkins Engines Co Ltd
Peterborough City Council,Children's & Education Services - Children's Social Care,Family Support Services,Employees,06/05/2011,381668,3802.8,REVENUE,R82 UK Ltd
Peterborough City Council,Children's & Education Services - Children's Social Care,Other Children's & Families Services,Employees,06/05/2011,381742,1990.8,REVENUE,Medicare First
Peterborough City Council,Capital,Capital,Capital Pending Update to BS,06/05/2011,382606,1789.51,CAPITAL,Atkins Limited
Peterborough City Council,Capital,Capital,Capital Pending Update to BS,06/05/2011,382607,4995.83,CAPITAL,Atkins Limited
Peterborough City Council,Capital,Capital,Capital Pending Update to BS,06/05/2011,382608,12694.69,CAPITAL,Atkins Limited
Peterborough City Council,Capital,Capital,Capital Pending Update to BS,06/05/2011,382609,1397.46,CAPITAL,Atkins Limited
Peterborough City Council,Capital,Capital,Capital Pending Update to BS,06/05/2011,382610,1125.4,CAPITAL,Atkins Limited
Peterborough City Council,"Highways, Roads & Transport Services",Highways/road (structural),Supplies and Services,06/05/2011,382612,2523.8,REVENUE,Atkins Limited
Peterborough City Council,"Highways, Roads & Transport Services","Transport planning, policy and strategy",Supplies and Services,06/05/2011,382613,10803.05,REVENUE,Atkins Limited
Peterborough City Council,Capital,Capital,Capital Pending Update to BS,06/05/2011,382620,3960.74,CAPITAL,Atkins Limited
Peterborough City Council,"Highways, Roads & Transport Services","Transport planning, policy and strategy",Transport,06/05/2011,382621,10434.52,REVENUE,Atkins Limited
Peterborough City Council,Capital,Capital,Capital Pending Update to BS,06/05/2011,382622,1124.05,CAPITAL,Atkins Limited
Peterborough City Council,Capital,Capital,Capital Pending Update to BS,06/05/2011,382624,9523.21,CAPITAL,Atkins Limited
Peterborough City Council,"Highways, Roads & Transport Services",Highways/road (structural),Transport,06/05/2011,382626,859.55,REVENUE,Atkins Limited
Peterborough City Council,"Highways, Roads & Transport Services","Transport planning, policy and strategy",Transport,06/05/2011,382627,6253,REVENUE,Atkins Limited
Peterborough City Council,Capital,Capital,Capital Pending Update to BS,06/05/2011,382628,22645.93,CAPITAL,Atkins Limited
Peterborough City Council,"Highways, Roads & Transport Services",Street Lighting,Transport,06/05/2011,382629,898.25,REVENUE,Atkins Limited
Peterborough City Council,"Highways, Roads & Transport Services","Transport planning, policy and strategy",Transport,06/05/2011,382634,4214.86,REVENUE,Atkins Limited
Peterborough City Council,Housing Services,Supporting People,Third Party Payments,06/05/2011,382961,5250.72,REVENUE,Peterborough PCT
Peterborough City Council,Children's & Education Services - Children's Social Care,Children Looked After,Supplies and Services - Transfer Payments,06/05/2011,383937,3076.68,REVENUE,Fostering Options Ltd
Peterborough City Council,Children's & Education Services - Children's Social Care,Children Looked After,Supplies and Services - Transfer Payments,06/05/2011,384205,20153.57,REVENUE,Oracle Care Ltd (Region 2)
Peterborough City Council,Children's & Education Services - Children's Social Care,Children Looked After,Supplies and Services - Transfer Payments,06/05/2011,384206,16794.64,REVENUE,Oracle Care Ltd (Region 2)
Peterborough City Council,Children's & Education Services - Children's Social Care,Children Looked After,Supplies and Services - Transfer Payments,06/05/2011,384207,4500,REVENUE,Oracle Care Ltd (Region 2)
Peterborough City Council,"Highways, Roads & Transport Services","Transport planning, policy and strategy",Transport,06/05/2011,384318,1663.46,REVENUE,Atkins Limited
Peterborough City Council,Capital,Capital,Capital Pending Update to BS,06/05/2011,384319,988.93,CAPITAL,Atkins Limited
Peterborough City Council,"Highways, Roads & Transport Services","Transport planning, policy and strategy",Transport,06/05/2011,384321,1736.39,REVENUE,Atkins Limited
Peterborough City Council,Children's & Education Services - Children's Social Care,Children Looked After,Employees,06/05/2011,384712,1479.6,REVENUE,Capita Resourcing Ltd
Peterborough City Council,Support Services,Support Services,Premises,06/05/2011,385024,3675.81,REVENUE,Anglian Water
Peterborough City Council,Children's & Education Services - Children's Social Care,Children Looked After,Transport,06/05/2011,385070,547.2,REVENUE,Redacted Personal Data
Peterborough City Council,More than one Service Area Category,More than one Service Division,Transport,06/05/2011,385071,533.7,REVENUE,Redacted Personal Data
Peterborough City Council,Children's & Education Services - Children's Social Care,More than one Service Division,Supplies and Services,06/05/2011,385079,1666.66,REVENUE,Redacted Personal Data
Peterborough City Council,More than one Service Area Category,More than one Service Division,More than one Expenses Type,06/05/2011,385103,1199.32,REVENUE,Peterborough City Council
Peterborough City Council,Support Services,Support Services,Supplies and Services,06/05/2011,385134,2025,REVENUE,AMTEC Consulting Plc
Peterborough City Council,Support Services,Support Services,Supplies and Services,06/05/2011,385135,4455,REVENUE,AMTEC Consulting Plc
Peterborough City Council,Capital,Capital,Capital Pending Update to BS,06/05/2011,385136,87897.46,CAPITAL,AMTEC Consulting Plc
Peterborough City Council,Support Services,Support Services,Supplies and Services,06/05/2011,385137,4597.2,REVENUE,AMTEC Consulting Plc
Peterborough City Council,Support Services,Support Services,Supplies and Services,06/05/2011,385138,15120,REVENUE,AMTEC Consulting Plc
Peterborough City Council,Capital,Capital,Capital Pending Update to BS,06/05/2011,385139,8748,CAPITAL,AMTEC Consulting Plc
Peterborough City Council,Capital,Capital,Capital Pending Update to BS,06/05/2011,385140,5040,CAPITAL,AMTEC Consulting Plc
Peterborough City Council,"Cultural, Environmental and Planning Services",Economic Development,Supplies and Services,06/05/2011,385141,12919.39,REVENUE,AMTEC Consulting Plc
Peterborough City Council,Support Services,Support Services,Supplies and Services,06/05/2011,385142,7140,REVENUE,AMTEC Consulting Plc
Peterborough City Council,"Cultural, Environmental and Planning Services",Economic Development,Supplies and Services,06/05/2011,385143,15790.37,REVENUE,AMTEC Consulting Plc
Peterborough City Council,Support Services,Support Services,Supplies and Services,06/05/2011,385144,7468.8,REVENUE,AMTEC Consulting Plc
Peterborough City Council,Support Services,Support Services,Supplies and Services,06/05/2011,385145,15876,REVENUE,AMTEC Consulting Plc
Peterborough City Council,Support Services,Support Services,Supplies and Services,06/05/2011,385146,45204,REVENUE,AMTEC Consulting Plc
Peterborough City Council,Support Services,Support Services,Supplies and Services,06/05/2011,385147,5670,REVENUE,AMTEC Consulting Plc
Peterborough City Council,Support Services,Support Services & Management Costs,Supplies and Services,06/05/2011,385148,4320,REVENUE,AMTEC Consulting Plc
Peterborough City Council,Capital,Capital,Capital Pending Update to BS,06/05/2011,385149,36674.4,CAPITAL,AMTEC Consulting Plc
Peterborough City Council,Support Services,Support Services,Supplies and Services,06/05/2011,385150,11340,REVENUE,AMTEC Consulting Plc
Peterborough City Council,Support Services,Support Services,Supplies and Services,06/05/2011,385151,2700,REVENUE,AMTEC Consulting Plc
Peterborough City Council,Children's & Education Services - Education,Non-School Funding,Supplies and Services,06/05/2011,385152,4764,REVENUE,AMTEC Consulting Plc
Peterborough City Council,Children's & Education Services - Education,Non-School Funding,Supplies and Services,06/05/2011,385153,2858.4,REVENUE,AMTEC Consulting Plc
Peterborough City Council,Support Services,Support Services,Supplies and Services,06/05/2011,385154,22080,REVENUE,AMTEC Consulting Plc
Peterborough City Council,Support Services,Support Services,Supplies and Services,06/05/2011,385155,9834,REVENUE,AMTEC Consulting Plc
Peterborough City Council,Deficit/(Surplus) on Trading Undertakings,Trading Account Surpluses & Deficits,Supplies and Services,06/05/2011,385156,11937.6,REVENUE,AMTEC Consulting Plc
Peterborough City Council,Central Services to the Public,Local Tax,Supplies and Services,06/05/2011,385157,6660,REVENUE,AMTEC Consulting Plc
Peterborough City Council,Central Services to the Public,Local Tax,Employees,06/05/2011,385158,13197.6,REVENUE,AMTEC Consulting Plc
Peterborough City Council,Support Services,Support Services,Supplies and Services,06/05/2011,385159,4455,REVENUE,AMTEC Consulting Plc
Peterborough City Council,Children's & Education Services - Children's Social Care,More than one Service Division,More than one Expenses Type,06/05/2011,385160,1134.52,REVENUE,Children & Families Looked After Children
Peterborough City Council,Children's & Education Services - Children's Social Care,More than one Service Division,More than one Expenses Type,06/05/2011,385167,1249.4,REVENUE,Children & Families Looked After Children
Peterborough City Council,More than one Service Area Category,More than one Service Division,More than one Expenses Type,06/05/2011,385168,588,"Mixture of Capital, Revenue and/or Balance Sheet",Abbott & Ashby
Peterborough City Council,More than one Service Area Category,More than one Service Division,More than one Expenses Type,06/05/2011,385169,2289,"Mixture of Capital, Revenue and/or Balance Sheet",Abbott & Ashby
Peterborough City Council,Children's & Education Services - Children's Social Care,More than one Service Division,More than one Expenses Type,06/05/2011,385172,1171.55,REVENUE,Children & Families Looked After Children
Peterborough City Council,Children's & Education Services - Children's Social Care,Children Looked After,Supplies and Services - Transfer Payments,06/05/2011,385207,8485.74,REVENUE,Continuum Care & Educ. Group.
Peterborough City Council,Support Services,Support Services,Premises,06/05/2011,385237,716.35,REVENUE,British Gas Business
Peterborough City Council,Adult Social Care,Adult Social Care,Third Party Payments,06/05/2011,385259,3305909.1,REVENUE,Peterborough PCT
Peterborough City Council,Children's & Education Services - Education,Primary,Supplies and Services,06/05/2011,385272,2250,REVENUE,Redacted Personal Data
Peterborough City Council,Capital,Capital,Capital Pending Update to BS,06/05/2011,385277,782.22,CAPITAL,British Gas Business
Peterborough City Council,Children's & Education Services - Children's Social Care,Children Looked After,Supplies and Services - Transfer Payments,09/05/2011,382417,3094.5,REVENUE,Alliance Foster Care
Peterborough City Council,Children's & Education Services - Children's Social Care,Children Looked After,Supplies and Services - Transfer Payments,09/05/2011,382418,2580.3,REVENUE,Alliance Foster Care
Peterborough City Council,Children's & Education Services - Children's Social Care,Other Children's & Families Services,Employees,09/05/2011,382715,1546.7,REVENUE,Blue Group International Ltd
Peterborough City Council,"Cultural, Environmental and Planning Services",Regulatory services,Supplies and Services,09/05/2011,382897,2400,REVENUE,Midland Environmental Contracts Ltd
Peterborough City Council,More than one Service Area Category,More than one Service Division,More than one Expenses Type,09/05/2011,382913,1080.48,REVENUE,Northgate Information Solutions
Peterborough City Council,Support Services,Support Services,Supplies and Services,09/05/2011,382914,2815.6,REVENUE,Capita Business Services Ltd
Peterborough City Council,Deficit/(Surplus) on Trading Undertakings,Trading Account Surpluses & Deficits,Supplies and Services,09/05/2011,382917,579.36,REVENUE,Safetykleen UK Ltd
Peterborough City Council,Deficit/(Surplus) on Trading Undertakings,Trading Account Surpluses & Deficits,Transport,09/05/2011,383024,1065,REVENUE,Apex Training Services
Peterborough City Council,Support Services,Support Services & Management Costs,Supplies and Services,09/05/2011,383034,3510,REVENUE,Princebuild Limited
Peterborough City Council,Children's & Education Services - Education,Non-School Funding,Supplies and Services,09/05/2011,383149,1253.46,REVENUE,University Of Hull
Peterborough City Council,Children's & Education Services - Education,Non-School Funding,Supplies and Services,09/05/2011,383178,5189.76,REVENUE,Kirkstone House School
Peterborough City Council,Children's & Education Services - Education,Non-School Funding,Supplies and Services,09/05/2011,383179,2157.33,REVENUE,Kirkstone House School
Peterborough City Council,Children's & Education Services - Education,Non-School Funding,Supplies and Services,09/05/2011,383180,2157.33,REVENUE,Kirkstone House School
Peterborough City Council,Central Services to the Public,Local Tax,More than one Expenses Type,09/05/2011,383270,573.04,REVENUE,Redacted Personal Data
Peterborough City Council,Deficit/(Surplus) on Trading Undertakings,Trading Account Surpluses & Deficits,Supplies and Services,09/05/2011,383830,1285.12,REVENUE,Princebuild Limited
Peterborough City Council,More than one Service Area Category,More than one Service Division,Transport,09/05/2011,383845,1127.4,REVENUE,R T Enterprises Ltd T/A Royal Taxis
Peterborough City Council,More than one Service Area Category,More than one Service Division,More than one Expenses Type,09/05/2011,384041,50534.1,"Mixture of Capital, Revenue and/or Balance Sheet",Ringway Infrastructure Services
Peterborough City Council,More than one Service Area Category,More than one Service Division,More than one Expenses Type,09/05/2011,384043,91126.9,"Mixture of Capital, Revenue and/or Balance Sheet",Ringway Infrastructure Services
Peterborough City Council,Children's & Education Services - Children's Social Care,Other Children's & Families Services,Employees,09/05/2011,384114,1731.6,REVENUE,Medicare First
Peterborough City Council,Children's & Education Services - Children's Social Care,Children Looked After,Supplies and Services - Transfer Payments,09/05/2011,384168,16427.44,REVENUE,Young Options College Ltd
Peterborough City Council,Children's & Education Services - Children's Social Care,Children Looked After,Supplies and Services - Transfer Payments,09/05/2011,384169,18483.44,REVENUE,Young Options College Ltd
Peterborough City Council,Housing Services,Homelessness,Employees,09/05/2011,384172,601.01,REVENUE,Anne Corder Recruitment
Peterborough City Council,Deficit/(Surplus) on Trading Undertakings,Trading Account Surpluses & Deficits,Supplies and Services,09/05/2011,384184,1358.68,REVENUE,Barron Clark Castings Ltd
Peterborough City Council,Children's & Education Services - Children's Social Care,Children Looked After,Supplies and Services - Transfer Payments,09/05/2011,384193,5785.8,REVENUE,Alliance Foster Care
Peterborough City Council,"Highways, Roads & Transport Services",Public Transport,Supplies and Services,09/05/2011,384196,32253.2,REVENUE,Stagecoach in Peterborough
Peterborough City Council,Children's & Education Services - Children's Social Care,Other Children's & Families Services,Employees,09/05/2011,384253,1764,REVENUE,Medicare First
Peterborough City Council,Children's & Education Services - Children's Social Care,Other Children's & Families Services,Supplies and Services,09/05/2011,384254,698.34,REVENUE,CINTRA Ltd
Peterborough City Council,Children's & Education Services - Children's Social Care,Youth Justice,Supplies and Services,09/05/2011,384262,1033.08,REVENUE,CINTRA Ltd
Peterborough City Council,Children's & Education Services - Children's Social Care,Support Services & Management Costs,Employees,09/05/2011,384335,1776,REVENUE,Blue Group International Ltd
Peterborough City Council,Capital,Capital,Capital Pending Update to BS,09/05/2011,384376,9840,CAPITAL,Rider Levett Bucknall UK Ltd
Peterborough City Council,Children's & Education Services - Children's Social Care,Other Children's & Families Services,Supplies and Services,09/05/2011,384398,1797.8,REVENUE,Social Support Limited
Peterborough City Council,Capital,Capital,Capital Pending Update to BS,09/05/2011,384406,4324.94,CAPITAL,EPOS Partners
Peterborough City Council,Housing Services,Homelessness,Employees,09/05/2011,384413,604.97,REVENUE,Anne Corder Recruitment
Peterborough City Council,Housing Services,Homelessness,Employees,09/05/2011,384416,601.01,REVENUE,Anne Corder Recruitment
Peterborough City Council,Housing Services,Homelessness,Employees,09/05/2011,384417,601.01,REVENUE,Anne Corder Recruitment
Peterborough City Council,Deficit/(Surplus) on Trading Undertakings,Trading Account Surpluses & Deficits,Supplies and Services,09/05/2011,384580,2336.52,REVENUE,Perkins Engines Co Ltd
Peterborough City Council,Support Services,Support Services,Supplies and Services,09/05/2011,384602,8063.4,REVENUE,Eversheds LLP
Peterborough City Council,"Highways, Roads & Transport Services",Traffic management & Road Safety,Supplies and Services,09/05/2011,384628,1576.98,REVENUE,Ringway Infrastructure Services
Peterborough City Council,Housing Services,Homelessness,Employees,09/05/2011,384640,577.29,REVENUE,Anne Corder Recruitment
Peterborough City Council,Children's & Education Services - Children's Social Care,Children Looked After,Supplies and Services - Transfer Payments,09/05/2011,384643,11200,REVENUE,Redacted Personal Data
Peterborough City Council,Support Services,Support Services,Supplies and Services,09/05/2011,384775,897.12,REVENUE,NorthgateArinso HR Ltd
Peterborough City Council,Deficit/(Surplus) on Trading Undertakings,Trading Account Surpluses & Deficits,Supplies and Services,09/05/2011,384850,2151.07,REVENUE,Barron Clark Castings Ltd
Peterborough City Council,More than one Service Area Category,More than one Service Division,Balance Sheet,09/05/2011,385084,1045.57,Balance Sheet,HM Revenues & Customs
Peterborough City Council,More than one Service Area Category,More than one Service Division,Balance Sheet,09/05/2011,385215,1535.89,Balance Sheet,Rossendales C B Ltd
Peterborough City Council,Children's & Education Services - Education,Non-School Funding,Employees,09/05/2011,385240,61263.2,REVENUE,Teachers Pensions
Peterborough City Council,Children's & Education Services - Education,Non-School Funding,Employees,09/05/2011,385241,815.35,REVENUE,Teachers Pensions
Peterborough City Council,Housing Services,Supporting People,Third Party Payments,09/05/2011,385253,62521.23,REVENUE,Axiom Housing Association
Peterborough City Council,"Cultural, Environmental and Planning Services",Open Spaces,Supplies and Services,09/05/2011,385288,5966.51,REVENUE,Belvedere Bowls Club
Peterborough City Council,"Cultural, Environmental and Planning Services",Open Spaces,Supplies and Services,09/05/2011,385289,4506.09,REVENUE,West Ward Bowls Club
Peterborough City Council,"Cultural, Environmental and Planning Services",Open Spaces,Supplies and Services,09/05/2011,385290,41154.55,REVENUE,Peterborough Rugby Club
Peterborough City Council,Deficit/(Surplus) on Trading Undertakings,Trading Account Surpluses & Deficits,Supplies and Services,09/05/2011,385297,1395.2,REVENUE,Barron Clark Castings Ltd
Peterborough City Council,Deficit/(Surplus) on Trading Undertakings,Trading Account Surpluses & Deficits,Supplies and Services,09/05/2011,385299,1026.53,REVENUE,Barron Clark Castings Ltd
Peterborough City Council,Deficit/(Surplus) on Trading Undertakings,Trading Account Surpluses & Deficits,Supplies and Services,09/05/2011,385300,509.86,REVENUE,Barron Clark Castings Ltd
Peterborough City Council,Deficit/(Surplus) on Trading Undertakings,Trading Account Surpluses & Deficits,Supplies and Services,09/05/2011,385302,1584.91,REVENUE,Barron Clark Castings Ltd
Peterborough City Council,Deficit/(Surplus) on Trading Undertakings,Trading Account Surpluses & Deficits,Supplies and Services,09/05/2011,385303,1289.63,REVENUE,Barron Clark Castings Ltd
Peterborough City Council,More than one Service Area Category,More than one Service Division,Balance Sheet,09/05/2011,385306,10521.39,Balance Sheet,3 Star Ambassador Taxis
Peterborough City Council,More than one Service Area Category,More than one Service Division,Balance Sheet,09/05/2011,385307,7659,Balance Sheet,3 Star Ambassador Taxis
Peterborough City Council,More than one Service Area Category,More than one Service Division,Balance Sheet,09/05/2011,385308,6810.2,Balance Sheet,3 Star Ambassador Taxis
Peterborough City Council,Children's & Education Services - Education,Non-School Funding,Transport,09/05/2011,385370,2620.8,REVENUE,Woodgrange Travel Ltd t/a DiamondCars
Peterborough City Council,Children's & Education Services - Education,Non-School Funding,Transport,09/05/2011,385379,844.02,REVENUE,Goldstar Cabs Ltd
Peterborough City Council,Children's & Education Services - Education,Non-School Funding,Transport,09/05/2011,385381,511.2,REVENUE,King Cabz
Peterborough City Council,More than one Service Area Category,More than one Service Division,Transport,09/05/2011,385382,1250.4,REVENUE,King Cabz
Peterborough City Council,"Cultural, Environmental and Planning Services","Cemetery, Crematorium & Mortuary Services",Premises,09/05/2011,385399,1312.2,REVENUE,Facultatieve Technologies Ltd
Peterborough City Council,Deficit/(Surplus) on Trading Undertakings,Trading Account Surpluses & Deficits,Premises,09/05/2011,385406,12000,REVENUE,Lambert Smith Hampton
Peterborough City Council,More than one Service Area Category,More than one Service Division,Balance Sheet,09/05/2011,385417,713.52,Balance Sheet,Equita Ltd
Peterborough City Council,Children's & Education Services - Children's Social Care,Children Looked After,Supplies and Services,09/05/2011,385498,1097,REVENUE,Adoption UK
Peterborough City Council,"Cultural, Environmental and Planning Services",Economic Development,Third Party Payments,09/05/2011,385516,75436.23,REVENUE,NWES
Peterborough City Council,Children's & Education Services - Education,Non-School Funding,Employees,09/05/2011,385530,1095.6,REVENUE,Mana Resourcing Ltd
Peterborough City Council,Central Services to the Public,Local Tax,Employees,09/05/2011,385551,1267.2,REVENUE,The Synergy Group
Peterborough City Council,Housing Services,Housing Benefits,Employees,09/05/2011,385557,1231.2,REVENUE,The Synergy Group
Peterborough City Council,Support Services,Support Services,Supplies and Services,09/05/2011,385568,911.92,REVENUE,Cambridgeshire County Council
Peterborough City Council,"Highways, Roads & Transport Services","Transport planning, policy and strategy",Transport,11/05/2011,377233,1130.9,REVENUE,Atkins Limited
Peterborough City Council,"Highways, Roads & Transport Services","Transport planning, policy and strategy",Transport,11/05/2011,377239,2705.29,REVENUE,Atkins Limited
Peterborough City Council,"Highways, Roads & Transport Services",Public Transport,Supplies and Services,11/05/2011,378309,1200,REVENUE,Peterborough Environment City Trust
Peterborough City Council,"Cultural, Environmental and Planning Services",Environmental Initiatives,Supplies and Services,11/05/2011,378888,5942.4,REVENUE,Peterborough Environment City Trust
Peterborough City Council,Capital,Capital,Capital Pending Update to BS,11/05/2011,380351,4500,CAPITAL,Peterborough Environment City Trust
Peterborough City Council,"Cultural, Environmental and Planning Services",Environmental Initiatives,Supplies and Services,11/05/2011,381006,4500,REVENUE,Peterborough Environment City Trust
Peterborough City Council,"Cultural, Environmental and Planning Services",Environmental Initiatives,Supplies and Services,11/05/2011,381016,35325,REVENUE,Peterborough Environment City Trust
Peterborough City Council,"Cultural, Environmental and Planning Services",Recreation & Sport,Third Party Payments,11/05/2011,382729,1250,REVENUE,Maxey Community Association
Peterborough City Council,Support Services,Support Services,Supplies and Services,11/05/2011,383121,999,REVENUE,Key People Ltd
Peterborough City Council,Children's & Education Services - Children's Social Care,Support Services & Management Costs,Employees,11/05/2011,383184,6393.6,REVENUE,Compass Career Opportunities Ltd
Peterborough City Council,Children's & Education Services - Children's Social Care,Other Children's & Families Services,Employees,11/05/2011,383236,816,REVENUE,Frontline Staffing Ltd
Peterborough City Council,Children's & Education Services - Children's Social Care,Other Children's & Families Services,Employees,11/05/2011,383250,1632,REVENUE,Frontline Staffing Ltd
Peterborough City Council,Central Services to the Public,Local Tax,More than one Expenses Type,11/05/2011,383274,728.23,REVENUE,Redacted Personal Data
Peterborough City Council,Central Services to the Public,Local Tax,More than one Expenses Type,11/05/2011,383276,3220.45,REVENUE,Redacted Personal Data
Peterborough City Council,More than one Service Area Category,More than one Service Division,More than one Expenses Type,11/05/2011,383773,20130,"Mixture of Capital, Revenue and/or Balance Sheet",Acrabuild (Anglia) Ltd
Peterborough City Council,Deficit/(Surplus) on Trading Undertakings,Trading Account Surpluses & Deficits,Premises,11/05/2011,383783,1944,REVENUE,Bull & Co Ltd
Peterborough City Council,Capital,Capital,Capital Pending Update to BS,11/05/2011,383785,17034,CAPITAL,Bull & Co Ltd
Peterborough City Council,"Highways, Roads & Transport Services",Public Transport,Supplies and Services,11/05/2011,383992,2656,REVENUE,Stagecoach in Peterborough
Peterborough City Council,Children's & Education Services - Children's Social Care,Family Support Services,Premises,11/05/2011,384028,554.61,REVENUE,Pace Fuelcare Ltd
Peterborough City Council,Children's & Education Services - Children's Social Care,Other Children's & Families Services,Supplies and Services,11/05/2011,384092,1515.36,REVENUE,Cross Keys Homes
Peterborough City Council,Support Services,Support Services,Employees,11/05/2011,384098,1344.96,REVENUE,Venn Group Ltd
Peterborough City Council,"Highways, Roads & Transport Services",Street Lighting,Supplies and Services,11/05/2011,384121,21775.18,REVENUE,Volker Highways MEWS Ltd
Peterborough City Council,Deficit/(Surplus) on Trading Undertakings,Trading Account Surpluses & Deficits,Supplies and Services,11/05/2011,384125,3221.81,REVENUE,Perkins Engines Co Ltd
Peterborough City Council,More than one Service Area Category,More than one Service Division,Balance Sheet,11/05/2011,384133,31431,Balance Sheet,Aldi Stores Ltd
Peterborough City Council,Children's & Education Services - Education,Non-School Funding,Transport,11/05/2011,384149,6115,REVENUE,West Berkshire Council
Peterborough City Council,"Cultural, Environmental and Planning Services",Economic Development,Employees,11/05/2011,384157,4400,REVENUE,NACRO
Peterborough City Council,Deficit/(Surplus) on Trading Undertakings,Trading Account Surpluses & Deficits,Supplies and Services,11/05/2011,384161,2342.4,REVENUE,Dieselprods limited
Peterborough City Council,"Highways, Roads & Transport Services",Traffic management & Road Safety,Supplies and Services,11/05/2011,384164,1650,REVENUE,Pitney Bowes Software Ltd
Peterborough City Council,Capital,Capital,Capital Pending Update to BS,11/05/2011,384167,1893.78,CAPITAL,Barker Storey Matthews
Peterborough City Council,"Cultural, Environmental and Planning Services",Regulatory services,Supplies and Services,11/05/2011,384177,527.4,REVENUE,Eurofins Laboratories Ltd
Peterborough City Council,"Highways, Roads & Transport Services",Public Transport,Supplies and Services,11/05/2011,384197,1262.57,REVENUE,Veolia Transport UK Ltd
Peterborough City Council,"Highways, Roads & Transport Services",Traffic management & Road Safety,Supplies and Services,11/05/2011,384221,535.29,REVENUE,Wilson & Scott (Highways) Ltd
Peterborough City Council,Children's & Education Services - Children's Social Care,Youth Justice,Transport,11/05/2011,384230,759.07,REVENUE,Reliance
Peterborough City Council,"Cultural, Environmental and Planning Services",Regulatory services,Supplies and Services,11/05/2011,384259,510,REVENUE,Eurofins Laboratories Ltd
Peterborough City Council,Central Services to the Public,Local Tax,Employees,11/05/2011,384329,1420.8,REVENUE,The Synergy Group
Peterborough City Council,Housing Services,Housing Benefits,Employees,11/05/2011,384331,1260,REVENUE,The Synergy Group
Peterborough City Council,Housing Services,Housing Benefits,Employees,11/05/2011,384334,826.2,REVENUE,The Synergy Group
Peterborough City Council,Capital,Capital,Capital Pending Update to BS,11/05/2011,384353,525.06,CAPITAL,Signs Express
Peterborough City Council,"Cultural, Environmental and Planning Services",Economic Development,Employees,11/05/2011,384377,2158.92,REVENUE,Hays Specialist Recruitment Ltd
Peterborough City Council,"Highways, Roads & Transport Services","Transport planning, policy and strategy",Employees,11/05/2011,384378,1068,REVENUE,Hays Specialist Recruitment Ltd
Peterborough City Council,Capital,Capital,Capital Pending Update to BS,11/05/2011,384380,42043.2,CAPITAL,Bull & Co Ltd
Peterborough City Council,Children's & Education Services - Children's Social Care,Other Children's & Families Services,Supplies and Services,11/05/2011,384400,1480.45,REVENUE,Social Support Limited
Peterborough City Council,Children's & Education Services - Children's Social Care,Other Children's & Families Services,Supplies and Services,11/05/2011,384401,1361.03,REVENUE,Social Support Limited
Peterborough City Council,Children's & Education Services - Children's Social Care,Children Looked After,Supplies and Services,11/05/2011,384428,678,REVENUE,Redacted Personal Data
Peterborough City Council,"Cultural, Environmental and Planning Services",Economic Development,Third Party Payments,11/05/2011,384565,2490,REVENUE,Ratcliff Land & Engineering Surveys
Peterborough City Council,"Highways, Roads & Transport Services",Regulatory services,Supplies and Services,11/05/2011,384636,971.36,REVENUE,VIP-System Ltd
Peterborough City Council,Children's & Education Services - Children's Social Care,Children Looked After,Supplies and Services - Transfer Payments,11/05/2011,384653,3441.3,REVENUE,Foster Care Associates Ltd FCA
Peterborough City Council,Children's & Education Services - Children's Social Care,Children Looked After,Supplies and Services - Transfer Payments,11/05/2011,384660,4239,REVENUE,Foster Care Associates Ltd FCA
Peterborough City Council,Children's & Education Services - Education,Secondary,More than one Expenses Type,11/05/2011,384664,2997.85,REVENUE,Redacted Personal Data
Peterborough City Council,Children's & Education Services - Children's Social Care,Children Looked After,Supplies and Services - Transfer Payments,11/05/2011,384671,3441.3,REVENUE,Foster Care Associates Ltd FCA
Peterborough City Council,Children's & Education Services - Children's Social Care,Children Looked After,Supplies and Services - Transfer Payments,11/05/2011,384672,2813.7,REVENUE,Foster Care Associates Ltd FCA
Peterborough City Council,Children's & Education Services - Children's Social Care,Children Looked After,Supplies and Services - Transfer Payments,11/05/2011,384675,2813.7,REVENUE,Foster Care Associates Ltd FCA
Peterborough City Council,Children's & Education Services - Children's Social Care,Children Looked After,Supplies and Services - Transfer Payments,11/05/2011,384677,2813.7,REVENUE,Foster Care Associates Ltd FCA
Peterborough City Council,Children's & Education Services - Children's Social Care,Children Looked After,Supplies and Services - Transfer Payments,11/05/2011,384680,3441.3,REVENUE,Foster Care Associates Ltd FCA
Peterborough City Council,Children's & Education Services - Children's Social Care,Children Looked After,Supplies and Services - Transfer Payments,11/05/2011,384685,3441.3,REVENUE,Foster Care Associates Ltd FCA
Peterborough City Council,Children's & Education Services - Children's Social Care,Children Looked After,Supplies and Services - Transfer Payments,11/05/2011,384694,3441.3,REVENUE,Foster Care Associates Ltd FCA
Peterborough City Council,Children's & Education Services - Children's Social Care,Children Looked After,Supplies and Services - Transfer Payments,11/05/2011,384696,2813.7,REVENUE,Foster Care Associates Ltd FCA
Peterborough City Council,Children's & Education Services - Children's Social Care,Children Looked After,Supplies and Services - Transfer Payments,11/05/2011,384697,3441.3,REVENUE,Foster Care Associates Ltd FCA
Peterborough City Council,Children's & Education Services - Children's Social Care,Children Looked After,Supplies and Services - Transfer Payments,11/05/2011,384699,2813.7,REVENUE,Foster Care Associates Ltd FCA
Peterborough City Council,Children's & Education Services - Children's Social Care,Children Looked After,Supplies and Services - Transfer Payments,11/05/2011,384701,2813.7,REVENUE,Foster Care Associates Ltd FCA
Peterborough City Council,Children's & Education Services - Children's Social Care,Children Looked After,Supplies and Services - Transfer Payments,11/05/2011,384703,4084.8,REVENUE,Foster Care Associates Ltd FCA
Peterborough City Council,Children's & Education Services - Children's Social Care,Children Looked After,Supplies and Services - Transfer Payments,11/05/2011,384704,3441.3,REVENUE,Foster Care Associates Ltd FCA
Peterborough City Council,Children's & Education Services - Children's Social Care,Children Looked After,Supplies and Services - Transfer Payments,11/05/2011,384708,3441.3,REVENUE,Foster Care Associates Ltd FCA
Peterborough City Council,Children's & Education Services - Children's Social Care,Children Looked After,Supplies and Services - Transfer Payments,11/05/2011,384722,3441.3,REVENUE,Foster Care Associates Ltd FCA
Peterborough City Council,Housing Services,Homelessness,Supplies and Services,11/05/2011,384743,960,REVENUE,Redacted Personal Data
Peterborough City Council,Capital,Capital,Capital Pending Update to BS,11/05/2011,384778,17136,CAPITAL,Hyder Consulting (UK) Ltd
Peterborough City Council,Deficit/(Surplus) on Trading Undertakings,Trading Account Surpluses & Deficits,Supplies and Services,11/05/2011,384833,1836,REVENUE,Pimseal Ltd
Peterborough City Council,Children's & Education Services - Education,Non-School Funding,Transport,11/05/2011,384951,1168,REVENUE,Aardvark Coaches
Peterborough City Council,Children's & Education Services - Education,Non-School Funding,Transport,11/05/2011,384952,1156,REVENUE,Aardvark Coaches
Peterborough City Council,Children's & Education Services - Education,Non-School Funding,Transport,11/05/2011,384953,1168,REVENUE,Aardvark Coaches
Peterborough City Council,Children's & Education Services - Education,Non-School Funding,Transport,11/05/2011,384954,1136,REVENUE,Aardvark Coaches
Peterborough City Council,Children's & Education Services - Education,Non-School Funding,Transport,11/05/2011,384955,1384,REVENUE,Aardvark Coaches
Peterborough City Council,Children's & Education Services - Children's Social Care,Support Services & Management Costs,Supplies and Services,11/05/2011,385193,600,REVENUE,Redacted Personal Data
Peterborough City Council,Children's & Education Services - Education,Non-School Funding,Supplies and Services,11/05/2011,385257,6000,REVENUE,Dartington Hall Trust
Peterborough City Council,Deficit/(Surplus) on Trading Undertakings,Trading Account Surpluses & Deficits,Premises,11/05/2011,385266,540,REVENUE,Npower Ltd
Peterborough City Council,Support Services,Support Services,Premises,11/05/2011,385361,965.04,REVENUE,Anglian Water
Peterborough City Council,Adult Social Care,Adult Social Care,Third Party Payments,11/05/2011,385435,39306.5,REVENUE,Peterborough PCT
Peterborough City Council,Children's & Education Services - Children's Social Care,Other Children's & Families Services,Third Party Payments,11/05/2011,385444,"56,310.72",REVENUE,Peterborough Provider Services
Peterborough City Council,Adult Social Care,Adult Social Care,Supplies and Services,11/05/2011,385445,462012.37,REVENUE,Peterborough Provider Services
Peterborough City Council,Children's & Education Services - Children's Social Care,Other Children's & Families Services,Supplies and Services,11/05/2011,385505,829.4,REVENUE,Purple Professional Services Ltd
Peterborough City Council,Capital,Capital,Capital Pending Update to BS,11/05/2011,385526,65307.82,CAPITAL,G D'Amore Ltd
Peterborough City Council,Children's & Education Services - Children's Social Care,Children Looked After,Supplies and Services - Transfer Payments,11/05/2011,385556,3278.62,REVENUE,Alliance Foster Care
Peterborough City Council,Support Services,Support Services,Supplies and Services,11/05/2011,385604,15000,REVENUE,Postage By Phone - Pitney Bowes Ltd
Peterborough City Council,More than one Service Area Category,More than one Service Division,More than one Expenses Type,11/05/2011,385628,2198,"Mixture of Capital, Revenue and/or Balance Sheet",S R K Engineering
Peterborough City Council,More than one Service Area Category,More than one Service Division,More than one Expenses Type,11/05/2011,385629,1000.01,"Mixture of Capital, Revenue and/or Balance Sheet",Thermowall Ltd
Peterborough City Council,Children's & Education Services - Education,Non-School Funding,Transport,11/05/2011,385632,692.4,REVENUE,3 Star Ambassador Taxis
Peterborough City Council,Children's & Education Services - Education,Non-School Funding,Transport,11/05/2011,385656,1429.8,REVENUE,R T Enterprises Ltd T/A Royal Taxis
Peterborough City Council,Capital,Capital,Capital Pending Update to BS,11/05/2011,385660,3440.85,CAPITAL,Rawheat Heating & Plumbing Eng.
Peterborough City Council,More than one Service Area Category,More than one Service Division,More than one Expenses Type,11/05/2011,385662,1424.35,REVENUE,Redacted Personal Data
Peterborough City Council,Children's & Education Services - Children's Social Care,Children Looked After,Transport,11/05/2011,385663,1480.05,REVENUE,Redacted Personal Data
Peterborough City Council,Children's & Education Services - Children's Social Care,Children Looked After,Transport,11/05/2011,385664,742.05,REVENUE,Redacted Personal Data
Peterborough City Council,"Cultural, Environmental and Planning Services",Economic Development,Employees,11/05/2011,385671,1253.29,REVENUE,Randstad CPE
Peterborough City Council,Children's & Education Services - Children's Social Care,Other Children's & Families Services,Supplies and Services,11/05/2011,385672,1973.16,REVENUE,Venn Group Ltd
Peterborough City Council,Children's & Education Services - Children's Social Care,Other Children's & Families Services,Supplies and Services,11/05/2011,385676,1926.18,REVENUE,Venn Group Ltd
Peterborough City Council,"Cultural, Environmental and Planning Services",Economic Development,Employees,11/05/2011,385685,1093.33,REVENUE,Redacted Personal Data
Peterborough City Council,"Cultural, Environmental and Planning Services",Community Development,Supplies and Services,11/05/2011,385686,665,REVENUE,Hampton Events Committee
Peterborough City Council,Children's & Education Services - Children's Social Care,Support Services & Management Costs,Supplies and Services,11/05/2011,385724,3802.85,REVENUE,Everything Everywhere Ltd
Peterborough City Council,Corporate & Democratic Core,Corporate Management,Supplies and Services,11/05/2011,385729,1217.46,REVENUE,Everything Everywhere Ltd
Peterborough City Council,"Highways, Roads & Transport Services",Public Transport,Supplies and Services,11/05/2011,385737,2850.57,REVENUE,Stagecoach in Peterborough
Peterborough City Council,"Highways, Roads & Transport Services",Public Transport,Supplies and Services,11/05/2011,385738,6272.28,REVENUE,Stagecoach in Peterborough
Peterborough City Council,Support Services,Support Services,Premises,11/05/2011,385739,12758.8,REVENUE,Savills L&P Ltd
Peterborough City Council,Support Services,Support Services,Premises,11/05/2011,385740,8808.41,REVENUE,Savills L&P Ltd
Peterborough City Council,"Highways, Roads & Transport Services",Public Transport,Supplies and Services,11/05/2011,385742,5531.04,REVENUE,Stagecoach in Peterborough
Peterborough City Council,"Highways, Roads & Transport Services",Public Transport,Supplies and Services,11/05/2011,385743,1843.68,REVENUE,Stagecoach in Peterborough
Peterborough City Council,"Highways, Roads & Transport Services",Public Transport,Supplies and Services,11/05/2011,385745,1900,REVENUE,Stagecoach in Peterborough
Peterborough City Council,Support Services,Support Services,Supplies and Services,11/05/2011,385748,3045.6,REVENUE,Browne Jacobson
Peterborough City Council,Support Services,Support Services,Premises,11/05/2011,385767,659.2,REVENUE,NB Real Estate
Peterborough City Council,Children's & Education Services - Children's Social Care,Other Children's & Families Services,Supplies and Services - Transfer Payments,11/05/2011,385804,600,REVENUE,Redacted Personal Data
Peterborough City Council,Children's & Education Services - Children's Social Care,Other Children's & Families Services,Supplies and Services - Transfer Payments,11/05/2011,385805,613.6,REVENUE,Redacted Personal Data
Peterborough City Council,Children's & Education Services - Children's Social Care,Children Looked After,Supplies and Services - Transfer Payments,11/05/2011,385927,616.18,REVENUE,Redacted Personal Data
Peterborough City Council,Children's & Education Services - Children's Social Care,Children Looked After,Supplies and Services - Transfer Payments,11/05/2011,385928,560.98,REVENUE,Redacted Personal Data
Peterborough City Council,Children's & Education Services - Children's Social Care,Children Looked After,Supplies and Services - Transfer Payments,11/05/2011,385929,560.98,REVENUE,Redacted Personal Data
Peterborough City Council,Children's & Education Services - Children's Social Care,Children Looked After,Supplies and Services - Transfer Payments,11/05/2011,385930,529.9,REVENUE,Redacted Personal Data
Peterborough City Council,Children's & Education Services - Children's Social Care,Children Looked After,Supplies and Services - Transfer Payments,11/05/2011,385931,560.98,REVENUE,Redacted Personal Data
Peterborough City Council,Children's & Education Services - Children's Social Care,Children Looked After,Supplies and Services - Transfer Payments,11/05/2011,385932,529.9,REVENUE,Redacted Personal Data
Peterborough City Council,Children's & Education Services - Children's Social Care,Children Looked After,Supplies and Services - Transfer Payments,11/05/2011,385934,529.9,REVENUE,Redacted Personal Data
Peterborough City Council,Children's & Education Services - Children's Social Care,Children Looked After,Supplies and Services - Transfer Payments,11/05/2011,385935,529.9,REVENUE,Redacted Personal Data
Peterborough City Council,Children's & Education Services - Children's Social Care,Children Looked After,Supplies and Services - Transfer Payments,11/05/2011,385936,529.9,REVENUE,Redacted Personal Data
Peterborough City Council,Children's & Education Services - Children's Social Care,Children Looked After,Supplies and Services - Transfer Payments,11/05/2011,385937,529.9,REVENUE,Redacted Personal Data
Peterborough City Council,Children's & Education Services - Children's Social Care,Children Looked After,Supplies and Services - Transfer Payments,11/05/2011,385938,529.9,REVENUE,Redacted Personal Data
Peterborough City Council,Children's & Education Services - Children's Social Care,Children Looked After,Supplies and Services - Transfer Payments,11/05/2011,385939,529.9,REVENUE,Redacted Personal Data
Peterborough City Council,Children's & Education Services - Children's Social Care,Children Looked After,Supplies and Services - Transfer Payments,11/05/2011,385943,560.98,REVENUE,Redacted Personal Data
Peterborough City Council,Children's & Education Services - Children's Social Care,Children Looked After,Supplies and Services - Transfer Payments,11/05/2011,385944,560.98,REVENUE,Redacted Personal Data
Peterborough City Council,Children's & Education Services - Children's Social Care,Children Looked After,Supplies and Services - Transfer Payments,11/05/2011,385948,560.98,REVENUE,Redacted Personal Data
Peterborough City Council,Children's & Education Services - Children's Social Care,Children Looked After,Supplies and Services - Transfer Payments,11/05/2011,385949,529.9,REVENUE,Redacted Personal Data
Peterborough City Council,Children's & Education Services - Children's Social Care,Children Looked After,Supplies and Services - Transfer Payments,11/05/2011,385950,529.9,REVENUE,Redacted Personal Data
Peterborough City Council,Children's & Education Services - Children's Social Care,Children Looked After,Supplies and Services - Transfer Payments,11/05/2011,385951,529.9,REVENUE,Redacted Personal Data
Peterborough City Council,Children's & Education Services - Children's Social Care,Children Looked After,Supplies and Services - Transfer Payments,11/05/2011,385952,529.9,REVENUE,Redacted Personal Data
Peterborough City Council,Children's & Education Services - Children's Social Care,Children Looked After,Supplies and Services - Transfer Payments,11/05/2011,385955,529.9,REVENUE,Redacted Personal Data
Peterborough City Council,Children's & Education Services - Children's Social Care,Children Looked After,Supplies and Services - Transfer Payments,11/05/2011,385956,707.42,REVENUE,Redacted Personal Data
Peterborough City Council,Children's & Education Services - Children's Social Care,Children Looked After,Supplies and Services - Transfer Payments,11/05/2011,385957,529.9,REVENUE,Redacted Personal Data
Peterborough City Council,Children's & Education Services - Children's Social Care,Children Looked After,Supplies and Services - Transfer Payments,11/05/2011,385967,560.98,REVENUE,Redacted Personal Data
Peterborough City Council,Children's & Education Services - Children's Social Care,Children Looked After,Supplies and Services - Transfer Payments,11/05/2011,385968,885.08,REVENUE,Redacted Personal Data
Peterborough City Council,Children's & Education Services - Children's Social Care,Children Looked After,Supplies and Services - Transfer Payments,11/05/2011,385969,885.08,REVENUE,Redacted Personal Data
Peterborough City Council,Children's & Education Services - Children's Social Care,Children Looked After,Supplies and Services - Transfer Payments,11/05/2011,385970,520.91,REVENUE,Redacted Personal Data
Peterborough City Council,Children's & Education Services - Children's Social Care,Children Looked After,Supplies and Services - Transfer Payments,11/05/2011,385973,776.79,REVENUE,Redacted Personal Data
Peterborough City Council,Children's & Education Services - Children's Social Care,Children Looked After,Supplies and Services - Transfer Payments,11/05/2011,385974,529.9,REVENUE,Redacted Personal Data
Peterborough City Council,Children's & Education Services - Children's Social Care,Children Looked After,Supplies and Services - Transfer Payments,11/05/2011,385975,529.9,REVENUE,Redacted Personal Data
Peterborough City Council,Children's & Education Services - Children's Social Care,Children Looked After,Supplies and Services - Transfer Payments,11/05/2011,385976,571.83,REVENUE,Redacted Personal Data
Peterborough City Council,Children's & Education Services - Children's Social Care,Children Looked After,Supplies and Services - Transfer Payments,11/05/2011,385977,707.42,REVENUE,Redacted Personal Data
Peterborough City Council,Children's & Education Services - Children's Social Care,Children Looked After,Supplies and Services - Transfer Payments,11/05/2011,385982,560.98,REVENUE,Redacted Personal Data
Peterborough City Council,Children's & Education Services - Children's Social Care,Children Looked After,Supplies and Services - Transfer Payments,11/05/2011,385988,529.9,REVENUE,Redacted Personal Data
Peterborough City Council,Children's & Education Services - Children's Social Care,Children Looked After,Supplies and Services - Transfer Payments,11/05/2011,385993,560.98,REVENUE,Redacted Personal Data
Peterborough City Council,Children's & Education Services - Children's Social Care,Children Looked After,Supplies and Services - Transfer Payments,11/05/2011,386012,529.9,REVENUE,Redacted Personal Data
Peterborough City Council,Children's & Education Services - Children's Social Care,Family Support Services,Supplies and Services,11/05/2011,386024,1148.22,REVENUE,Redacted Personal Data
Peterborough City Council,Children's & Education Services - Children's Social Care,Children Looked After,Supplies and Services - Transfer Payments,11/05/2011,386044,529.9,REVENUE,Redacted Personal Data
Peterborough City Council,Children's & Education Services - Children's Social Care,Children Looked After,Supplies and Services - Transfer Payments,11/05/2011,386050,529.9,REVENUE,Redacted Personal Data
Peterborough City Council,Children's & Education Services - Children's Social Care,Children Looked After,Supplies and Services - Transfer Payments,11/05/2011,386051,529.9,REVENUE,Redacted Personal Data
Peterborough City Council,Children's & Education Services - Children's Social Care,Children Looked After,Supplies and Services - Transfer Payments,11/05/2011,386060,885.08,REVENUE,Redacted Personal Data
Peterborough City Council,Children's & Education Services - Children's Social Care,Children Looked After,Supplies and Services - Transfer Payments,11/05/2011,386063,885.08,REVENUE,Redacted Personal Data
Peterborough City Council,Children's & Education Services - Children's Social Care,Children Looked After,Supplies and Services - Transfer Payments,11/05/2011,386064,885.08,REVENUE,Redacted Personal Data
Peterborough City Council,Children's & Education Services - Children's Social Care,Children Looked After,Supplies and Services - Transfer Payments,11/05/2011,386065,885.08,REVENUE,Redacted Personal Data
Peterborough City Council,Children's & Education Services - Children's Social Care,Children Looked After,Supplies and Services - Transfer Payments,11/05/2011,386066,885.08,REVENUE,Redacted Personal Data
Peterborough City Council,Children's & Education Services - Children's Social Care,Children Looked After,Supplies and Services - Transfer Payments,11/05/2011,386072,529.9,REVENUE,Redacted Personal Data
Peterborough City Council,Children's & Education Services - Children's Social Care,Children Looked After,Supplies and Services - Transfer Payments,11/05/2011,386076,560.98,REVENUE,Redacted Personal Data
Peterborough City Council,Children's & Education Services - Children's Social Care,Children Looked After,Supplies and Services - Transfer Payments,11/05/2011,386082,529.9,REVENUE,Redacted Personal Data
Peterborough City Council,Children's & Education Services - Children's Social Care,Children Looked After,Supplies and Services - Transfer Payments,11/05/2011,386096,529.9,REVENUE,Redacted Personal Data
Peterborough City Council,Children's & Education Services - Children's Social Care,Children Looked After,Supplies and Services - Transfer Payments,11/05/2011,386097,560.98,REVENUE,Redacted Personal Data
Peterborough City Council,Children's & Education Services - Children's Social Care,Children Looked After,Supplies and Services - Transfer Payments,11/05/2011,386098,529.9,REVENUE,Redacted Personal Data
Peterborough City Council,Children's & Education Services - Children's Social Care,Children Looked After,Supplies and Services - Transfer Payments,11/05/2011,386146,661.93,REVENUE,Redacted Personal Data
Peterborough City Council,More than one Service Area Category,More than one Service Division,Balance Sheet,11/05/2011,386165,2500,Balance Sheet,Redacted Personal Data
Peterborough City Council,More than one Service Area Category,More than one Service Division,More than one Expenses Type,11/05/2011,386185,2584.8,REVENUE,Goldstar Cabs Ltd
Peterborough City Council,Children's & Education Services - Education,Non-School Funding,Transport,11/05/2011,386186,662.4,REVENUE,Goldstar Cabs Ltd
Peterborough City Council,More than one Service Area Category,More than one Service Division,Transport,11/05/2011,386187,508.8,REVENUE,Goldstar Cabs Ltd
Peterborough City Council,Children's & Education Services - Education,Non-School Funding,Transport,11/05/2011,386188,537.6,REVENUE,Goldstar Cabs Ltd
Peterborough City Council,Children's & Education Services - Education,Non-School Funding,Transport,11/05/2011,386189,816,REVENUE,Goldstar Cabs Ltd
Peterborough City Council,Children's & Education Services - Education,Non-School Funding,Transport,11/05/2011,386190,624,REVENUE,Goldstar Cabs Ltd
Peterborough City Council,More than one Service Area Category,More than one Service Division,Balance Sheet,11/05/2011,386197,566,Balance Sheet,Dept for Work & Pensions
Peterborough City Council,More than one Service Area Category,More than one Service Division,Balance Sheet,11/05/2011,386198,663.58,Balance Sheet,Rossendales C B Ltd
Peterborough City Council,Housing Services,Housing Benefits,Employees,11/05/2011,386208,900,REVENUE,CIPFA
Peterborough City Council,Adult Social Care,Other Adult Services,Supplies and Services,11/05/2011,386238,3423.6,REVENUE,Frontier Medical
Peterborough City Council,Housing Services,Private Sector Housing Renewal,Supplies and Services,11/05/2011,386239,867,REVENUE,Fletton Electrics Ltd
Peterborough City Council,Housing Services,Private Sector Housing Renewal,Supplies and Services,11/05/2011,386241,756.5,REVENUE,Fletton Electrics Ltd
Peterborough City Council,Housing Services,Private Sector Housing Renewal,Supplies and Services,11/05/2011,386242,841.5,REVENUE,Fletton Electrics Ltd
Peterborough City Council,Support Services,Support Services,Supplies and Services,11/05/2011,386243,3408,REVENUE,CIPFA
Peterborough City Council,"Cultural, Environmental and Planning Services",Community Development,Supplies and Services,11/05/2011,386245,2415,REVENUE,Redacted Personal Data
Peterborough City Council,Children's & Education Services - Children's Social Care,Children Looked After,Supplies and Services,11/05/2011,386249,3440,REVENUE,PACT
Peterborough City Council,Children's & Education Services - Children's Social Care,Children Looked After,Supplies and Services,11/05/2011,386250,2580,REVENUE,PACT
Peterborough City Council,Children's & Education Services - Children's Social Care,Family Support Services,Supplies and Services - Transfer Payments,11/05/2011,386347,759.86,REVENUE,Cherry Lodge
Peterborough City Council,More than one Service Area Category,More than one Service Division,More than one Expenses Type,11/05/2011,386388,11077.09,"Mixture of Capital, Revenue and/or Balance Sheet",Peterborough City Council
Peterborough City Council,Children's & Education Services - Education,Non-School Funding,Transport,11/05/2011,386439,716.4,REVENUE,Goldstar Cabs Ltd
Peterborough City Council,Children's & Education Services - Education,Non-School Funding,Transport,11/05/2011,386440,652.8,REVENUE,Goldstar Cabs Ltd
Peterborough City Council,Children's & Education Services - Education,Non-School Funding,Transport,11/05/2011,386441,504,REVENUE,Goldstar Cabs Ltd
Peterborough City Council,Children's & Education Services - Education,Non-School Funding,Transport,11/05/2011,386442,508.8,REVENUE,Goldstar Cabs Ltd
Peterborough City Council,Children's & Education Services - Education,Non-School Funding,Transport,11/05/2011,386443,712.32,REVENUE,Goldstar Cabs Ltd
Peterborough City Council,Children's & Education Services - Education,Non-School Funding,Transport,11/05/2011,386445,595.2,REVENUE,Goldstar Cabs Ltd
Peterborough City Council,Children's & Education Services - Education,Non-School Funding,Transport,11/05/2011,386448,1209.6,REVENUE,Goldstar Cabs Ltd
Peterborough City Council,Children's & Education Services - Education,Non-School Funding,Transport,11/05/2011,386449,686.4,REVENUE,Goldstar Cabs Ltd
Peterborough City Council,Children's & Education Services - Education,Non-School Funding,Transport,11/05/2011,386454,1615.5,REVENUE,Shaws Coaches
Peterborough City Council,Children's & Education Services - Children's Social Care,Children Looked After,More than one Expenses Type,13/05/2011,368038,18894,REVENUE,Chilworth House School
Peterborough City Council,Children's & Education Services - Children's Social Care,Youth Justice,Premises,13/05/2011,375409,696,REVENUE,Cording Asset Manage. LLP Client A/C
Peterborough City Council,Children's & Education Services - Children's Social Care,Youth Justice,Premises,13/05/2011,375410,693.6,REVENUE,Cording Asset Manage. LLP Client A/C
Peterborough City Council,Children's & Education Services - Children's Social Care,More than one Service Division,Employees,13/05/2011,382784,1687.2,REVENUE,Care Recruitment UK Ltd
Peterborough City Council,More than one Service Area Category,More than one Service Division,More than one Expenses Type,13/05/2011,384042,152793.14,"Mixture of Capital, Revenue and/or Balance Sheet",Ringway Infrastructure Services
Peterborough City Council,"Cultural, Environmental and Planning Services",Community Development,Employees,13/05/2011,384415,520.2,REVENUE,Anne Corder Recruitment
Peterborough City Council,Children's & Education Services - Children's Social Care,Children Looked After,Supplies and Services - Transfer Payments,13/05/2011,384466,866.7,REVENUE,IAS TACT
Peterborough City Council,Deficit/(Surplus) on Trading Undertakings,Trading Account Surpluses & Deficits,Supplies and Services,13/05/2011,384650,725.84,REVENUE,Schaeffler (UK) Ltd
Peterborough City Council,Children's & Education Services - Children's Social Care,Family Support Services,More than one Expenses Type,13/05/2011,384652,1200,REVENUE,Swim
Peterborough City Council,Children's & Education Services - Children's Social Care,Children Looked After,Supplies and Services - Transfer Payments,13/05/2011,384682,3441.3,REVENUE,Foster Care Associates Ltd FCA
Peterborough City Council,"Cultural, Environmental and Planning Services",Community Development,Supplies and Services,13/05/2011,384686,665.98,REVENUE,Triple SSS Limited
Peterborough City Council,Deficit/(Surplus) on Trading Undertakings,Trading Account Surpluses & Deficits,Supplies and Services,13/05/2011,384831,1380,REVENUE,Pimseal Ltd
Peterborough City Council,Deficit/(Surplus) on Trading Undertakings,Trading Account Surpluses & Deficits,Supplies and Services,13/05/2011,384832,1380,REVENUE,Pimseal Ltd
Peterborough City Council,Support Services,Support Services,Supplies and Services,13/05/2011,384835,583.1,REVENUE,PHS Group Plc
Peterborough City Council,Support Services,Support Services,Supplies and Services,13/05/2011,384836,599.04,REVENUE,PHS Group Plc
Peterborough City Council,Support Services,Support Services,Supplies and Services,13/05/2011,384839,1787.76,REVENUE,PHS Group Plc
Peterborough City Council,Support Services,Support Services,Supplies and Services,13/05/2011,384840,560.16,REVENUE,PHS Group Plc
Peterborough City Council,Support Services,Support Services,Supplies and Services,13/05/2011,384843,1407.12,REVENUE,PHS Group Plc
Peterborough City Council,Deficit/(Surplus) on Trading Undertakings,Trading Account Surpluses & Deficits,Supplies and Services,13/05/2011,384849,2827.63,REVENUE,Barron Clark Castings Ltd
Peterborough City Council,Children's & Education Services - Children's Social Care,Family Support Services,More than one Expenses Type,13/05/2011,384859,731.7,REVENUE,PAM Recruitment Ltd
Peterborough City Council,"Cultural, Environmental and Planning Services",Community Development,Supplies and Services,13/05/2011,385286,1500,REVENUE,Newborough Pre-School Playgroup
Peterborough City Council,Deficit/(Surplus) on Trading Undertakings,Trading Account Surpluses & Deficits,Supplies and Services,13/05/2011,385301,870.59,REVENUE,Barron Clark Castings Ltd
Peterborough City Council,Deficit/(Surplus) on Trading Undertakings,Trading Account Surpluses & Deficits,Supplies and Services,13/05/2011,385304,1551.17,REVENUE,Barron Clark Castings Ltd
Peterborough City Council,Support Services,Support Services,Premises,13/05/2011,385359,-8207.49,REVENUE,Southern Electric
Peterborough City Council,Children's & Education Services - Children's Social Care,Other Children's & Families Services,Supplies and Services,13/05/2011,385412,1753.8,REVENUE,CINTRA Ltd
Peterborough City Council,Children's & Education Services - Children's Social Care,Other Children's & Families Services,Supplies and Services,13/05/2011,385415,1302.48,REVENUE,CINTRA Ltd
Peterborough City Council,Children's & Education Services - Education,Secondary,Premises,13/05/2011,385430,5913.38,REVENUE,Southern Electric
Peterborough City Council,"Highways, Roads & Transport Services","Environmental, Safety & Routine Maintenance",Supplies and Services,13/05/2011,385455,992.81,REVENUE,Wilson & Scott (Highways) Ltd
Peterborough City Council,Children's & Education Services - Education,Non-School Funding,Supplies and Services,13/05/2011,385583,660,REVENUE,St Johns C of E Pre-School
Peterborough City Council,Children's & Education Services - Education,Non-School Funding,Supplies and Services,13/05/2011,385585,600,REVENUE,Parnwell Family Project Playgroup
Peterborough City Council,Children's & Education Services - Education,Non-School Funding,Supplies and Services,13/05/2011,385589,720,REVENUE,Paston & Gunthorpe Pre-School
Peterborough City Council,Children's & Education Services - Children's Social Care,Children Looked After,Premises,13/05/2011,385753,4738.04,REVENUE,Southern Electric
Peterborough City Council,"Cultural, Environmental and Planning Services","Cemetery, Crematorium & Mortuary Services",Premises,13/05/2011,386306,962.84,REVENUE,Viridor Waste Kent Ltd
Peterborough City Council,"Cultural, Environmental and Planning Services",Recreation & Sport,Premises,13/05/2011,386312,1444.27,REVENUE,Viridor Waste Kent Ltd
Peterborough City Council,Children's & Education Services - Children's Social Care,Children Looked After,Premises,13/05/2011,386341,722.14,REVENUE,Viridor Waste Kent Ltd
Peterborough City Council,"Cultural, Environmental and Planning Services",Community Development,Premises,13/05/2011,386349,722.14,REVENUE,Viridor Waste Kent Ltd
Peterborough City Council,"Cultural, Environmental and Planning Services",Economic Development,Premises,13/05/2011,386393,15164.8,REVENUE,Viridor Waste Kent Ltd
Peterborough City Council,"Cultural, Environmental and Planning Services",Economic Development,Premises,13/05/2011,386404,4072.55,REVENUE,Viridor Waste Kent Ltd
Peterborough City Council,"Cultural, Environmental and Planning Services",Culture & Heritage,Premises,13/05/2011,386408,1444.27,REVENUE,Viridor Waste Kent Ltd
Peterborough City Council,Support Services,Support Services,Premises,13/05/2011,386409,2407.12,REVENUE,Viridor Waste Kent Ltd
Peterborough City Council,"Cultural, Environmental and Planning Services",Economic Development,Premises,13/05/2011,386414,1186.56,REVENUE,Viridor Waste Kent Ltd
Peterborough City Council,"Cultural, Environmental and Planning Services",Economic Development,Premises,13/05/2011,386415,4746.24,REVENUE,Viridor Waste Kent Ltd
Peterborough City Council,Support Services,Support Services,Premises,13/05/2011,386419,1186.56,REVENUE,Viridor Waste Kent Ltd
Peterborough City Council,More than one Service Area Category,More than one Service Division,More than one Expenses Type,13/05/2011,386467,1111.87,REVENUE,Peterborough City Council
Peterborough City Council,More than one Service Area Category,More than one Service Division,More than one Expenses Type,13/05/2011,386468,623.99,REVENUE,Peterborough City Council
Peterborough City Council,Children's & Education Services - Education,Secondary,Supplies and Services,13/05/2011,386471,9625.44,REVENUE,IIC by Education (P'boro) Ltd
Peterborough City Council,Support Services,Support Services,Premises,13/05/2011,386496,3655.13,REVENUE,Southern Electric
Peterborough City Council,Support Services,Support Services,Premises,13/05/2011,386497,727.62,REVENUE,E.ON Energy
Peterborough City Council,Support Services,Support Services,Premises,13/05/2011,386499,3648.39,REVENUE,Eastern Shires Purchasing Organisation
Peterborough City Council,Support Services,Support Services,Premises,13/05/2011,386500,1551.17,REVENUE,Anglian Water
Peterborough City Council,"Highways, Roads & Transport Services","Environmental, Safety & Routine Maintenance",Supplies and Services,13/05/2011,386506,1620,REVENUE,ITS United Kingdom
Peterborough City Council,Children's & Education Services - Education,Secondary,Supplies and Services,13/05/2011,386510,1374,REVENUE,Barker Storey Matthews
Peterborough City Council,Support Services,Support Services,Supplies and Services,13/05/2011,386543,102086.4,REVENUE,Danwood Group Limited
Peterborough City Council,"Cultural, Environmental and Planning Services",Community Development,Premises,13/05/2011,386560,1015.2,REVENUE,Britannia Fire & Security Ltd
Peterborough City Council,More than one Service Area Category,More than one Service Division,More than one Expenses Type,13/05/2011,386568,5040,"Mixture of Capital, Revenue and/or Balance Sheet",Abbott & Ashby
Peterborough City Council,Children's & Education Services - Children's Social Care,More than one Service Division,Supplies and Services,13/05/2011,386578,1275.82,REVENUE,Children & Families Looked After Children
Peterborough City Council,"Cultural, Environmental and Planning Services",Support Services & Management Costs,Third Party Payments,13/05/2011,386582,1110000,REVENUE,Vivacity Culture and Leisure
Peterborough City Council,More than one Service Area Category,More than one Service Division,Transport,13/05/2011,386592,722.7,REVENUE,Redacted Personal Data
Peterborough City Council,Children's & Education Services - Children's Social Care,Children Looked After,Transport,13/05/2011,386594,1462.5,REVENUE,Redacted Personal Data
Peterborough City Council,Children's & Education Services - Children's Social Care,Children Looked After,Transport,13/05/2011,386595,1008.1,REVENUE,Redacted Personal Data
Peterborough City Council,Children's & Education Services - Children's Social Care,Children Looked After,Transport,13/05/2011,386596,1515.8,REVENUE,Redacted Personal Data
Peterborough City Council,More than one Service Area Category,More than one Service Division,Transport,13/05/2011,386597,723.6,REVENUE,Redacted Personal Data
Peterborough City Council,Children's & Education Services - Children's Social Care,Children Looked After,Transport,13/05/2011,386598,1007.55,REVENUE,Redacted Personal Data
Peterborough City Council,Children's & Education Services - Children's Social Care,Children Looked After,More than one Expenses Type,13/05/2011,386599,1193.4,REVENUE,Redacted Personal Data
Peterborough City Council,Children's & Education Services - Education,Non-School Funding,Employees,13/05/2011,386604,2169,REVENUE,Institute of Education
Peterborough City Council,More than one Service Area Category,More than one Service Division,Third Party Payments,13/05/2011,386609,748767.8,REVENUE,Enterprise Managed Services Limited
Peterborough City Council,"Highways, Roads & Transport Services",Traffic management & Road Safety,Supplies and Services,13/05/2011,386611,549.6,REVENUE,Pitney Bowes Software Ltd
Peterborough City Council,"Cultural, Environmental and Planning Services",Economic Development,Third Party Payments,13/05/2011,386615,600,REVENUE,Community Action P'Boro
Peterborough City Council,"Cultural, Environmental and Planning Services",Community Development,Supplies and Services,13/05/2011,386619,3564,REVENUE,Paloma Systems Ltd
Peterborough City Council,"Highways, Roads & Transport Services",Street Lighting,Supplies and Services,13/05/2011,386634,60000,REVENUE,Volker Highways MEWS Ltd
Peterborough City Council,Corporate & Democratic Core,Democratic Representation & Managemetn,Supplies and Services,13/05/2011,386636,46788.3,REVENUE,Local Government Association
Peterborough City Council,"Highways, Roads & Transport Services",Street Lighting,Supplies and Services,13/05/2011,386637,3432.31,REVENUE,Volker Highways MEWS Ltd
Peterborough City Council,Deficit/(Surplus) on Trading Undertakings,Trading Account Surpluses & Deficits,Supplies and Services,16/05/2011,340074,1339.5,REVENUE,Richardson
Peterborough City Council,"Highways, Roads & Transport Services","Environmental, Safety & Routine Maintenance",Supplies and Services,16/05/2011,380324,2043.01,REVENUE,Cambridgeshire County Council
Peterborough City Council,Children's & Education Services - Education,Non-School Funding,Employees,16/05/2011,380325,2100,REVENUE,Cambridgeshire County Council
Peterborough City Council,"Cultural, Environmental and Planning Services",Planning Policy,Supplies and Services,16/05/2011,380326,29349.79,REVENUE,Cambridgeshire County Council
Peterborough City Council,Children's & Education Services - Children's Social Care,Family Support Services,Employees,16/05/2011,382328,1188,REVENUE,Cambridgeshire County Council
Peterborough City Council,Children's & Education Services - Education,Non-School Funding,Third Party Payments,16/05/2011,382377,38090,REVENUE,Cambridgeshire County Council
Peterborough City Council,"Highways, Roads & Transport Services","Transport planning, policy and strategy",Transport,16/05/2011,382632,2162.4,REVENUE,Atkins Limited
Peterborough City Council,Housing Services,Housing Benefits,Supplies and Services,16/05/2011,383254,598.8,REVENUE,Otech Ltd
Peterborough City Council,Capital,Capital,Capital Pending Update to BS,16/05/2011,383774,8027.46,CAPITAL,Bull & Co Ltd
Peterborough City Council,Children's & Education Services - Children's Social Care,Children Looked After,Supplies and Services - Transfer Payments,16/05/2011,383840,10799.88,REVENUE,Continuum Care & Educ. Group.
Peterborough City Council,Housing Services,Housing Benefits,Supplies and Services,16/05/2011,384049,2524.27,REVENUE,Royal Mail
Peterborough City Council,Children's & Education Services - Children's Social Care,Other Children's & Families Services,Employees,16/05/2011,384358,1789.2,REVENUE,Medicare First
Peterborough City Council,"Cultural, Environmental and Planning Services",Community Development,Employees,16/05/2011,384421,1300.5,REVENUE,Anne Corder Recruitment
Peterborough City Council,Housing Services,Homelessness,Employees,16/05/2011,384423,601.01,REVENUE,Anne Corder Recruitment
Peterborough City Council,Adult Social Care,Other Adult Services,Supplies and Services,16/05/2011,384436,6872.11,REVENUE,Bridgegate Drug Services
Peterborough City Council,"Cultural, Environmental and Planning Services",Recreation & Sport,Premises,16/05/2011,384478,2098.74,REVENUE,Princebuild Limited
Peterborough City Council,Deficit/(Surplus) on Trading Undertakings,Trading Account Surpluses & Deficits,Premises,16/05/2011,384479,701.09,REVENUE,Princebuild Limited
Peterborough City Council,Support Services,Support Services,Employees,16/05/2011,384582,1365.76,REVENUE,Venn Group Ltd
Peterborough City Council,Deficit/(Surplus) on Trading Undertakings,Trading Account Surpluses & Deficits,Supplies and Services,16/05/2011,384600,1278.4,REVENUE,Princebuild Limited
Peterborough City Council,Deficit/(Surplus) on Trading Undertakings,Trading Account Surpluses & Deficits,Premises,16/05/2011,384601,751.8,REVENUE,Princebuild Limited
Peterborough City Council,Children's & Education Services - Education,Non-School Funding,Supplies and Services,16/05/2011,384604,33405,REVENUE,Cambridgeshire County Council
Peterborough City Council,"Cultural, Environmental and Planning Services",Economic Development,Employees,16/05/2011,384614,1094.42,REVENUE,Randstad CPE
Peterborough City Council,"Highways, Roads & Transport Services","Transport planning, policy and strategy",Employees,16/05/2011,384616,1845.12,REVENUE,Randstad CPE
Peterborough City Council,"Highways, Roads & Transport Services","Transport planning, policy and strategy",Employees,16/05/2011,384666,1766.16,REVENUE,Randstad CPE
Peterborough City Council,"Cultural, Environmental and Planning Services",Economic Development,Employees,16/05/2011,384667,1663.2,REVENUE,Hays Specialist Recruitment Ltd
Peterborough City Council,"Cultural, Environmental and Planning Services",Economic Development,Employees,16/05/2011,384668,1258.96,REVENUE,Hays Specialist Recruitment Ltd
Peterborough City Council,Children's & Education Services - Children's Social Care,Youth Justice,Supplies and Services,16/05/2011,384684,8244.85,REVENUE,Cambridgeshire Constabulary
Peterborough City Council,Children's & Education Services - Children's Social Care,Youth Justice,Supplies and Services,16/05/2011,384693,2337.34,REVENUE,Cambridgeshire Constabulary
Peterborough City Council,Deficit/(Surplus) on Trading Undertakings,Trading Account Surpluses & Deficits,Premises,16/05/2011,384765,-2350,REVENUE,Princebuild Limited
Peterborough City Council,Children's & Education Services - Children's Social Care,Support Services & Management Costs,Employees,16/05/2011,384776,1776,REVENUE,Blue Group International Ltd
Peterborough City Council,Support Services,Support Services,Supplies and Services,16/05/2011,384781,2100,REVENUE,Redacted Personal Data
Peterborough City Council,"Cultural, Environmental and Planning Services",Community Development,Supplies and Services,16/05/2011,384782,651.48,REVENUE,Triple SSS Limited
Peterborough City Council,Children's & Education Services - Children's Social Care,Other Children's & Families Services,Employees,16/05/2011,384793,1569.12,REVENUE,Blue Group International Ltd
Peterborough City Council,Children's & Education Services - Children's Social Care,Children Looked After,Supplies and Services - Transfer Payments,16/05/2011,384943,11400,REVENUE,Lincoln House Childrens Services
Peterborough City Council,Children's & Education Services - Children's Social Care,Children Looked After,Supplies and Services - Transfer Payments,16/05/2011,384944,10796,REVENUE,Lincoln House Childrens Services
Peterborough City Council,Central Services to the Public,Elections,Premises,16/05/2011,385452,500,REVENUE,Eye Community Association
Peterborough City Council,Housing Services,Homelessness,Supplies and Services,16/05/2011,385593,1216.42,REVENUE,Destin Solutions Ltd
Peterborough City Council,Capital,Capital,Capital Pending Update to BS,16/05/2011,385596,942.6,CAPITAL,Telent Technology Services Ltd
Peterborough City Council,"Highways, Roads & Transport Services","Environmental, Safety & Routine Maintenance",Supplies and Services,16/05/2011,385600,11576.21,REVENUE,Telent Technology Services Ltd
Peterborough City Council,Capital,Capital,Capital Pending Update to BS,16/05/2011,385605,500000,CAPITAL,Anglia Ruskin University
Peterborough City Council,Children's & Education Services - Children's Social Care,Family Support Services,Employees,16/05/2011,385678,1088.1,REVENUE,Swim
Peterborough City Council,Children's & Education Services - Education,Non-School Funding,Supplies and Services,16/05/2011,386213,3070.64,REVENUE,PARCA
Peterborough City Council,Children's & Education Services - Education,Non-School Funding,Supplies and Services,16/05/2011,386214,5620,REVENUE,PARCA
Peterborough City Council,Housing Services,Homelessness,Employees,16/05/2011,386222,581.24,REVENUE,Anne Corder Recruitment
Peterborough City Council,Housing Services,Homelessness,Employees,16/05/2011,386225,604.97,REVENUE,Anne Corder Recruitment
Peterborough City Council,Housing Services,Homelessness,Employees,16/05/2011,386228,608.91,REVENUE,Anne Corder Recruitment
Peterborough City Council,Children's & Education Services - Children's Social Care,Children Looked After,Supplies and Services - Transfer Payments,16/05/2011,386255,39613,REVENUE,Chelfham Mill School Ltd
Peterborough City Council,Children's & Education Services - Children's Social Care,Family Support Services,Third Party Payments,16/05/2011,386482,40000,REVENUE,Caverstede Early Years Centre
Peterborough City Council,More than one Service Area Category,More than one Service Division,Balance Sheet,16/05/2011,386551,6485,Balance Sheet,"Pirmohamed, Amir"
Peterborough City Council,Capital,Capital,Capital Pending Update to BS,16/05/2011,386608,1451109.6,CAPITAL,Kier Eastern
Peterborough City Council,Children's & Education Services - Education,Non-School Funding,Transport,16/05/2011,386642,637.2,REVENUE,A2B Euro Cars
Peterborough City Council,More than one Service Area Category,More than one Service Division,Transport,16/05/2011,386643,1904.4,REVENUE,A2B Euro Cars
Peterborough City Council,More than one Service Area Category,More than one Service Division,Transport,16/05/2011,386644,1628.4,REVENUE,A2B Euro Cars
Peterborough City Council,Children's & Education Services - Education,Non-School Funding,Transport,16/05/2011,386645,758.4,REVENUE,A2B Euro Cars
Peterborough City Council,Children's & Education Services - Education,Non-School Funding,Transport,16/05/2011,386646,2244,REVENUE,A2B Euro Cars
Peterborough City Council,Children's & Education Services - Education,Non-School Funding,Transport,16/05/2011,386647,739.2,REVENUE,A2B Euro Cars
Peterborough City Council,Children's & Education Services - Education,Non-School Funding,Transport,16/05/2011,386649,1521.6,REVENUE,Woodgrange Travel Ltd t/a DiamondCars
Peterborough City Council,Children's & Education Services - Education,Non-School Funding,Transport,16/05/2011,386650,1612.8,REVENUE,Woodgrange Travel Ltd t/a DiamondCars
Peterborough City Council,Children's & Education Services - Education,Non-School Funding,Transport,16/05/2011,386665,642,REVENUE,Peterborough Cars
Peterborough City Council,Children's & Education Services - Education,Non-School Funding,Transport,16/05/2011,386666,942.6,REVENUE,Goldstar Cabs Ltd
Peterborough City Council,More than one Service Area Category,More than one Service Division,Transport,16/05/2011,386667,954,REVENUE,Goldstar Cabs Ltd
Peterborough City Council,Support Services,Support Services,Premises,16/05/2011,386673,942.6,REVENUE,Eastern Shires Purchasing Organisation
Peterborough City Council,"Cultural, Environmental and Planning Services",Waste Disposal,Supplies and Services,16/05/2011,386702,2760,REVENUE,Purebrand Creative Communications
Peterborough City Council,"Cultural, Environmental and Planning Services",Tourism,Supplies and Services,16/05/2011,386704,511.73,REVENUE,National Express Ltd
Peterborough City Council,"Highways, Roads & Transport Services",Public Transport,Supplies and Services,16/05/2011,386705,7499.29,REVENUE,National Express Ltd
Peterborough City Council,Central Services to the Public,Local Tax,Supplies and Services,16/05/2011,386714,7200,REVENUE,Financial Data Management
Peterborough City Council,Support Services,Support Services,Supplies and Services,16/05/2011,386717,3948,REVENUE,Criminal Records Bureau
Peterborough City Council,Support Services,Support Services,Supplies and Services,16/05/2011,386720,16994.96,REVENUE,Edenred
Peterborough City Council,Support Services,Support Services,Supplies and Services,16/05/2011,386721,723.28,REVENUE,Edenred
Peterborough City Council,More than one Service Area Category,More than one Service Division,Balance Sheet,16/05/2011,386754,246404.23,Balance Sheet,Cambridgeshire County Council
Peterborough City Council,More than one Service Area Category,More than one Service Division,Balance Sheet,16/05/2011,386755,660118.2,Balance Sheet,Cambridgeshire County Council
Peterborough City Council,Children's & Education Services - Children's Social Care,Other Children's & Families Services,Third Party Payments,16/05/2011,386782,6803.75,REVENUE,Peterborough Womens Aid
Peterborough City Council,"Cultural, Environmental and Planning Services",Waste Collection,Supplies and Services,16/05/2011,386794,28852.74,REVENUE,Organic Recycling Ltd
Peterborough City Council,Children's & Education Services - Children's Social Care,Other Children's & Families Services,Supplies and Services,16/05/2011,386799,1659.96,REVENUE,Venn Group Ltd
Peterborough City Council,Adult Social Care,Other Adult Services,Supplies and Services,16/05/2011,386809,14931.11,REVENUE,Bridgegate Drug Services
Peterborough City Council,More than one Service Area Category,More than one Service Division,Balance Sheet,16/05/2011,386810,1668475.34,Balance Sheet,HM Revenues & Customs
Peterborough City Council,More than one Service Area Category,More than one Service Division,Balance Sheet,16/05/2011,386811,137104.24,Balance Sheet,HM Revenues & Customs
Peterborough City Council,More than one Service Area Category,More than one Service Division,Balance Sheet,16/05/2011,386812,9364.44,Balance Sheet,HM Revenues & Customs
Peterborough City Council,More than one Service Area Category,More than one Service Division,Balance Sheet,16/05/2011,386813,4722.22,Balance Sheet,HM Revenues & Customs
Peterborough City Council,Adult Social Care,Other Adult Services,Supplies and Services,16/05/2011,386816,16303.11,REVENUE,Bridgegate Drug Services
Peterborough City Council,Adult Social Care,Other Adult Services,Supplies and Services,16/05/2011,386817,5408.11,REVENUE,Bridgegate Drug Services
Peterborough City Council,Adult Social Care,Other Adult Services,Supplies and Services,16/05/2011,386818,6872.11,REVENUE,Bridgegate Drug Services
Peterborough City Council,Adult Social Care,Other Adult Services,Supplies and Services,16/05/2011,386819,5407.11,REVENUE,Bridgegate Drug Services
Peterborough City Council,"Cultural, Environmental and Planning Services",Economic Development,Third Party Payments,16/05/2011,386820,16191,REVENUE,Peterborough Womens Aid
Peterborough City Council,Children's & Education Services - Children's Social Care,Other Children's & Families Services,Supplies and Services,16/05/2011,386822,1484,REVENUE,Thorpe Lodge Hotel
Peterborough City Council,"Cultural, Environmental and Planning Services",Building Control,Supplies and Services,16/05/2011,386824,8430,REVENUE,IHS (Global) Ltd
Peterborough City Council,Capital,Capital,Capital Pending Update to BS,16/05/2011,386837,949.36,CAPITAL,Telent Technology Services Ltd
Peterborough City Council,Deficit/(Surplus) on Trading Undertakings,Trading Account Surpluses & Deficits,Supplies and Services,16/05/2011,386843,1768.72,REVENUE,Barron Clark Castings Ltd
Peterborough City Council,Deficit/(Surplus) on Trading Undertakings,Trading Account Surpluses & Deficits,Supplies and Services,16/05/2011,386845,1249.86,REVENUE,Barron Clark Castings Ltd
Peterborough City Council,Children's & Education Services - Children's Social Care,Family Support Services,Employees,17/05/2011,388684,-1800,REVENUE,Cambs & P'boro NHS Foundation Trust
Peterborough City Council,Children's & Education Services - Children's Social Care,Children's Services - Commissioning and Social Work,Third Party Payments,18/05/2011,350428,13750,REVENUE,Cambs & P'boro NHS Foundation Trust
Peterborough City Council,Children's & Education Services - Children's Social Care,Children's Services - Commissioning and Social Work,Third Party Payments,18/05/2011,350429,8750,REVENUE,Cambs & P'boro NHS Foundation Trust
Peterborough City Council,Children's & Education Services - Children's Social Care,Children's Services - Commissioning and Social Work,Third Party Payments,18/05/2011,361948,8750,REVENUE,Cambs & P'boro NHS Foundation Trust
Peterborough City Council,Deficit/(Surplus) on Trading Undertakings,Trading Account Surpluses & Deficits,Supplies and Services,18/05/2011,364873,1131.56,REVENUE,Rowes Precision Products Ltd
Peterborough City Council,Children's & Education Services - Children's Social Care,Children's Services - Commissioning and Social Work,Third Party Payments,18/05/2011,368995,13750,REVENUE,Cambs & P'boro NHS Foundation Trust
Peterborough City Council,Children's & Education Services - Children's Social Care,Children's Services - Commissioning and Social Work,Third Party Payments,18/05/2011,368996,8750,REVENUE,Cambs & P'boro NHS Foundation Trust
Peterborough City Council,Capital,Capital,Capital Pending Update to BS,18/05/2011,370646,1495.2,CAPITAL,E.ON Energy
Peterborough City Council,Children's & Education Services - Children's Social Care,Children's Services - Commissioning and Social Work,Third Party Payments,18/05/2011,372983,15050,REVENUE,Cambs & P'boro NHS Foundation Trust
Peterborough City Council,Children's & Education Services - Children's Social Care,Children's Services - Commissioning and Social Work,Third Party Payments,18/05/2011,378108,13750,REVENUE,Cambs & P'boro NHS Foundation Trust
Peterborough City Council,Children's & Education Services - Children's Social Care,Children's Services - Commissioning and Social Work,Third Party Payments,18/05/2011,378109,8750,REVENUE,Cambs & P'boro NHS Foundation Trust
Peterborough City Council,Children's & Education Services - Education,Non-School Funding,Supplies and Services,18/05/2011,380232,8498,REVENUE,Redacted Personal Data
Peterborough City Council,Children's & Education Services - Children's Social Care,Children Looked After,Supplies and Services - Transfer Payments,18/05/2011,381105,1220.24,REVENUE,Axiom Housing Association
Peterborough City Council,Children's & Education Services - Children's Social Care,Other Children's & Families Services,Employees,18/05/2011,381744,1776,REVENUE,Medicare First
Peterborough City Council,Housing Services,Supporting People,Third Party Payments,18/05/2011,382965,10190.99,REVENUE,Stonham Housing Association
Peterborough City Council,Support Services,Support Services,Supplies and Services,18/05/2011,383118,666,REVENUE,Key People Ltd
Peterborough City Council,"Cultural, Environmental and Planning Services",Community Development,Supplies and Services,18/05/2011,383265,2400,REVENUE,Hampton Table Tennis Club
Peterborough City Council,Capital,Capital,Capital Pending Update to BS,18/05/2011,383775,10778.4,CAPITAL,Bull & Co Ltd
Peterborough City Council,Capital,Capital,Capital Pending Update to BS,18/05/2011,383776,14638.8,CAPITAL,Bull & Co Ltd
Peterborough City Council,Capital,Capital,Capital Pending Update to BS,18/05/2011,383777,16054.5,CAPITAL,Bull & Co Ltd
Peterborough City Council,Capital,Capital,Capital Pending Update to BS,18/05/2011,383778,14688,CAPITAL,Bull & Co Ltd
Peterborough City Council,"Cultural, Environmental and Planning Services",Waste Collection,Supplies and Services,18/05/2011,384051,1160.37,REVENUE,Waste Recycling Ltd
Peterborough City Council,"Cultural, Environmental and Planning Services",Waste Collection,Supplies and Services,18/05/2011,384053,13960.42,REVENUE,Waste Recycling Ltd
Peterborough City Council,"Cultural, Environmental and Planning Services",Waste Collection,Supplies and Services,18/05/2011,384054,5140.32,REVENUE,Waste Recycling Ltd
Peterborough City Council,"Cultural, Environmental and Planning Services",Waste Collection,Supplies and Services,18/05/2011,384055,13294.23,REVENUE,Waste Recycling Ltd
Peterborough City Council,"Cultural, Environmental and Planning Services",Waste Collection,Supplies and Services,18/05/2011,384080,2955.68,REVENUE,Waste Recycling Ltd
Peterborough City Council,"Cultural, Environmental and Planning Services",Waste Collection,Supplies and Services,18/05/2011,384082,6697.93,REVENUE,Waste Recycling Ltd
Peterborough City Council,Support Services,Support Services,Supplies and Services,18/05/2011,384387,3256.2,REVENUE,Serco Ltd
Peterborough City Council,Support Services,Support Services,Supplies and Services,18/05/2011,384392,852.06,REVENUE,Serco Ltd
Peterborough City Council,Support Services,Support Services,Supplies and Services,18/05/2011,384395,7356.02,REVENUE,Serco Ltd
Peterborough City Council,More than one Service Area Category,More than one Service Division,Supplies and Services,18/05/2011,384418,7785.27,REVENUE,BusinessWatch UK Security Services Ltd
Peterborough City Council,"Highways, Roads & Transport Services","Transport planning, policy and strategy",Supplies and Services,18/05/2011,384446,2754,REVENUE,Ratcliff Land & Engineering Surveys
Peterborough City Council,"Cultural, Environmental and Planning Services",Development Control,Supplies and Services,18/05/2011,384505,558.6,REVENUE,Johnston Press Midlands Division
Peterborough City Council,"Cultural, Environmental and Planning Services",Planning Policy,Supplies and Services,18/05/2011,384564,1640.4,REVENUE,Serco Ltd
Peterborough City Council,Housing Services,Housing Benefits,Supplies and Services,18/05/2011,384567,502.8,REVENUE,Serco Ltd
Peterborough City Council,Housing Services,Housing Benefits,Supplies and Services,18/05/2011,384568,1257,REVENUE,Serco Ltd
Peterborough City Council,Court Services,Coroner's Court Service,Supplies and Services,18/05/2011,384569,792.05,REVENUE,Serco Ltd
Peterborough City Council,Capital,Capital,Capital Pending Update to BS,18/05/2011,384572,3409.04,CAPITAL,Serco Ltd
Peterborough City Council,Support Services,Support Services,Supplies and Services,18/05/2011,384573,37870.8,REVENUE,Serco Ltd
Peterborough City Council,"Cultural, Environmental and Planning Services",Environmental Initiatives,Supplies and Services,18/05/2011,384575,1279.2,REVENUE,Serco Ltd
Peterborough City Council,Capital,Capital,Capital Pending Update to BS,18/05/2011,384576,2534.4,CAPITAL,Serco Ltd
Peterborough City Council,"Cultural, Environmental and Planning Services",Economic Development,Supplies and Services,18/05/2011,384583,3093.95,REVENUE,Vivacity Culture and Leisure
Peterborough City Council,Support Services,Support Services,Employees,18/05/2011,384605,1211.58,REVENUE,Sacco Mann Ltd
Peterborough City Council,Support Services,Support Services,Employees,18/05/2011,384619,2550,REVENUE,The College of Estate Management
Peterborough City Council,Children's & Education Services - Children's Social Care,Family Support Services,Employees,18/05/2011,384621,547.2,REVENUE,Movement 2
Peterborough City Council,"Cultural, Environmental and Planning Services",Regulatory services,Supplies and Services,18/05/2011,384622,1267.2,REVENUE,Environmental Scientifics Group Ltd
Peterborough City Council,Children's & Education Services - Children's Social Care,Family Support Services,Employees,18/05/2011,384632,1112.4,REVENUE,Swim
Peterborough City Council,Children's & Education Services - Children's Social Care,Other Children's & Families Services,Employees,18/05/2011,384633,7488,REVENUE,Amicus Recruit
Peterborough City Council,"Highways, Roads & Transport Services",Public Transport,Supplies and Services,18/05/2011,384656,8114.1,REVENUE,Applied Card Technologies
Peterborough City Council,"Highways, Roads & Transport Services","Transport planning, policy and strategy",Employees,18/05/2011,384673,1068,REVENUE,Hays Specialist Recruitment Ltd
Peterborough City Council,Children's & Education Services - Children's Social Care,Other Children's & Families Services,Employees,18/05/2011,384711,1644.24,REVENUE,Evergood Associates
Peterborough City Council,Support Services,Support Services,Supplies and Services,18/05/2011,384721,3203.4,REVENUE,Browne Jacobson
Peterborough City Council,Children's & Education Services - Children's Social Care,Family Support Services,Premises,18/05/2011,384795,699.48,REVENUE,PAM Recruitment Ltd
Peterborough City Council,Deficit/(Surplus) on Trading Undertakings,Trading Account Surpluses & Deficits,Supplies and Services,18/05/2011,384796,1337.64,REVENUE,Perkins Engines Co Ltd
Peterborough City Council,Deficit/(Surplus) on Trading Undertakings,Trading Account Surpluses & Deficits,Supplies and Services,18/05/2011,384797,1209.6,REVENUE,Perkins Engines Co Ltd
Peterborough City Council,Housing Services,Housing Benefits,Employees,18/05/2011,384810,979.2,REVENUE,The Synergy Group
Peterborough City Council,Children's & Education Services - Children's Social Care,Support Services & Management Costs,Supplies and Services,18/05/2011,385205,1500,REVENUE,Redacted Personal Data
Peterborough City Council,Capital,Capital,Capital Pending Update to BS,18/05/2011,385213,1116.48,CAPITAL,Naithsmiths LLP
Peterborough City Council,Children's & Education Services - Children's Social Care,Family Support Services,Third Party Payments,18/05/2011,385267,596,REVENUE,DRINKSENSE
Peterborough City Council,"Cultural, Environmental and Planning Services",Economic Development,Employees,18/05/2011,385280,1346.4,REVENUE,Hays Specialist Recruitment Ltd
Peterborough City Council,"Cultural, Environmental and Planning Services",Economic Development,Employees,18/05/2011,385281,1825.2,REVENUE,Hays Specialist Recruitment Ltd
Peterborough City Council,Adult Social Care,Other Adult Services,Supplies and Services,18/05/2011,385282,15735,REVENUE,Redacted Personal Data
Peterborough City Council,"Cultural, Environmental and Planning Services","Cemetery, Crematorium & Mortuary Services",Premises,18/05/2011,385403,3077.08,REVENUE,Facultatieve Technologies Ltd
Peterborough City Council,Court Services,Coroner's Court Service,Supplies and Services,18/05/2011,385419,13386.06,REVENUE,P'Boro & Stamford Hosp NHS F/dation Trust
Peterborough City Council,Children's & Education Services - Education,Secondary,Premises,18/05/2011,385428,629.29,REVENUE,Anglian Water
Peterborough City Council,Children's & Education Services - Education,Secondary,Premises,18/05/2011,385429,2367.48,REVENUE,Southern Electric
Peterborough City Council,Children's & Education Services - Education,Secondary,Premises,18/05/2011,385431,10069.96,REVENUE,Southern Electric
Peterborough City Council,Children's & Education Services - Education,Secondary,Premises,18/05/2011,385432,1361.04,REVENUE,Southern Electric
Peterborough City Council,Children's & Education Services - Education,Non-School Funding,Supplies and Services,18/05/2011,385447,2700,REVENUE,Fit 2 Go Ltd
Peterborough City Council,More than one Service Area Category,More than one Service Division,More than one Expenses Type,18/05/2011,385460,162821.72,"Mixture of Capital, Revenue and/or Balance Sheet",Ringway Infrastructure Services
Peterborough City Council,"Highways, Roads & Transport Services",Street Lighting,Premises,18/05/2011,385469,61024.5,REVENUE,Southern Electric
Peterborough City Council,Children's & Education Services - Education,More than one Service Division,Premises,18/05/2011,385473,825.61,REVENUE,Southern Electric
Peterborough City Council,"Highways, Roads & Transport Services",Public Transport,Supplies and Services,18/05/2011,385493,3188.4,REVENUE,ESP Sytex Limited
Peterborough City Council,"Cultural, Environmental and Planning Services",Economic Development,Employees,18/05/2011,385521,1967.02,REVENUE,Hays Specialist Recruitment Ltd
Peterborough City Council,Central Services to the Public,Local Tax,Employees,18/05/2011,385549,1110,REVENUE,The Synergy Group
Peterborough City Council,Children's & Education Services - Children's Social Care,Other Children's & Families Services,Employees,18/05/2011,385670,1894.99,REVENUE,Sanctuary Personnel Ltd
Peterborough City Council,More than one Service Area Category,More than one Service Division,More than one Expenses Type,18/05/2011,385751,234157.97,"Mixture of Capital, Revenue and/or Balance Sheet",Ringway Infrastructure Services
Peterborough City Council,Children's & Education Services - Children's Social Care,Family Support Services,Employees,18/05/2011,386474,723.18,REVENUE,Advantage Healthcare Nursing & Care Ltd
Peterborough City Council,Children's & Education Services - Children's Social Care,Children Looked After,Supplies and Services,18/05/2011,386477,4379,REVENUE,Coventry City Council
Peterborough City Council,Children's & Education Services - Children's Social Care,Family Support Services,Premises,18/05/2011,386508,504,REVENUE,Bakare Beds Ltd
Peterborough City Council,More than one Service Area Category,More than one Service Division,More than one Expenses Type,18/05/2011,386556,7147,"Mixture of Capital, Revenue and/or Balance Sheet",Redacted Personal Data
Peterborough City Council,More than one Service Area Category,More than one Service Division,Balance Sheet,18/05/2011,386565,541.77,Balance Sheet,Redacted Personal Data
Peterborough City Council,Children's & Education Services - Children's Social Care,Children Looked After,Supplies and Services,18/05/2011,386572,500,REVENUE,Secure Accommodation Network
Peterborough City Council,"Highways, Roads & Transport Services",Street Lighting,Premises,18/05/2011,386699,1775.18,REVENUE,E.ON Energy
Peterborough City Council,Children's & Education Services - Children's Social Care,Support Services & Management Costs,Supplies and Services,18/05/2011,386719,928.33,REVENUE,Spectrum Psychology Ltd
Peterborough City Council,"Cultural, Environmental and Planning Services",Economic Development,Third Party Payments,18/05/2011,386729,66250,REVENUE,Opportunity Peterborough
Peterborough City Council,Support Services,Support Services,Supplies and Services,18/05/2011,386732,838.8,REVENUE,Snap Surveys Ltd
Peterborough City Council,"Cultural, Environmental and Planning Services",Community Safety (CCTV),Supplies and Services,18/05/2011,386735,85654.64,REVENUE,British Telecom PLC
Peterborough City Council,"Cultural, Environmental and Planning Services",Community Development,Supplies and Services,18/05/2011,386775,597,REVENUE,MCE Corporate Gifts
Peterborough City Council,"Highways, Roads & Transport Services",Parking Services,Supplies and Services,18/05/2011,386825,1545.73,REVENUE,Metric Group Ltd
Peterborough City Council,Capital,Capital,Capital Pending Update to BS,18/05/2011,386829,67278.16,CAPITAL,Lindum Group Ltd
Peterborough City Council,"Cultural, Environmental and Planning Services",Community Development,Supplies and Services,18/05/2011,386840,1352.4,REVENUE,MCE Corporate Gifts
Peterborough City Council,Deficit/(Surplus) on Trading Undertakings,Trading Account Surpluses & Deficits,Supplies and Services,18/05/2011,386874,1475.04,REVENUE,Barron Clark Castings Ltd
Peterborough City Council,Deficit/(Surplus) on Trading Undertakings,Trading Account Surpluses & Deficits,Supplies and Services,18/05/2011,386877,1363.28,REVENUE,Barron Clark Castings Ltd
Peterborough City Council,Deficit/(Surplus) on Trading Undertakings,Trading Account Surpluses & Deficits,Supplies and Services,18/05/2011,386878,974.33,REVENUE,Barron Clark Castings Ltd
Peterborough City Council,Children's & Education Services - Children's Social Care,Children Looked After,Supplies and Services,18/05/2011,386879,1890,REVENUE,BAAF Adoption & Fostering
Peterborough City Council,Deficit/(Surplus) on Trading Undertakings,Trading Account Surpluses & Deficits,Supplies and Services,18/05/2011,386880,2915.93,REVENUE,Barron Clark Castings Ltd
Peterborough City Council,"Cultural, Environmental and Planning Services",Economic Development,Third Party Payments,18/05/2011,386886,16191,REVENUE,Peterborough Womens Aid
Peterborough City Council,"Cultural, Environmental and Planning Services",Economic Development,Third Party Payments,18/05/2011,386887,1250,REVENUE,Peterborough Womens Aid
Peterborough City Council,Housing Services,Homelessness,Supplies and Services,18/05/2011,386918,549.99,REVENUE,Renaissance Property Mngmnt
Peterborough City Council,Central Services to the Public,Local Tax,Supplies and Services,18/05/2011,386919,1463.1,REVENUE,BNP Parisbas Real Estate UK
Peterborough City Council,More than one Service Area Category,More than one Service Division,Balance Sheet,18/05/2011,386921,2016.12,Balance Sheet,Redacted Personal Data
Peterborough City Council,Capital,Capital,Capital Pending Update to BS,18/05/2011,386924,13112.18,CAPITAL,Bull & Co Ltd
Peterborough City Council,Children's & Education Services - Children's Social Care,Children Looked After,More than one Expenses Type,18/05/2011,386925,937.8,REVENUE,Clare Lodge Secure Unit
Peterborough City Council,Deficit/(Surplus) on Trading Undertakings,Trading Account Surpluses & Deficits,Premises,18/05/2011,386926,3519.2,REVENUE,Princebuild Limited
Peterborough City Council,Deficit/(Surplus) on Trading Undertakings,Trading Account Surpluses & Deficits,Supplies and Services,18/05/2011,386928,4584.22,REVENUE,Princebuild Limited
Peterborough City Council,Deficit/(Surplus) on Trading Undertakings,Trading Account Surpluses & Deficits,Premises,18/05/2011,386930,1271.18,REVENUE,Aebi Schmidt UK Ltd
Peterborough City Council,Deficit/(Surplus) on Trading Undertakings,Trading Account Surpluses & Deficits,Premises,18/05/2011,386931,1164.29,REVENUE,Princebuild Limited
Peterborough City Council,Deficit/(Surplus) on Trading Undertakings,Trading Account Surpluses & Deficits,Supplies and Services,18/05/2011,386932,1260,REVENUE,Rolton Group Ltd
Peterborough City Council,Children's & Education Services - Education,Non-School Funding,Premises,18/05/2011,386935,582,REVENUE,Bull & Co Ltd
Peterborough City Council,Deficit/(Surplus) on Trading Undertakings,Trading Account Surpluses & Deficits,Employees,18/05/2011,386938,3936.86,REVENUE,Recruitment Finder
Peterborough City Council,Deficit/(Surplus) on Trading Undertakings,Trading Account Surpluses & Deficits,Employees,18/05/2011,386965,1367.53,REVENUE,Recruitment Finder
Peterborough City Council,"Cultural, Environmental and Planning Services",Library Services,Premises,18/05/2011,386970,1026,REVENUE,Adcock Refrig/air Conditioning Ltd
Peterborough City Council,Support Services,Support Services,Premises,18/05/2011,386972,2293.84,REVENUE,Adcock Refrig/air Conditioning Ltd
Peterborough City Council,Support Services,Support Services,Premises,18/05/2011,386978,864.9,REVENUE,Eastern Shires Purchasing Organisation
Peterborough City Council,Children's & Education Services - Children's Social Care,Family Support Services,Employees,18/05/2011,387014,572.58,REVENUE,Advantage Healthcare Nursing & Care Ltd
Peterborough City Council,Children's & Education Services - Children's Social Care,Family Support Services,More than one Expenses Type,18/05/2011,387037,1093.33,REVENUE,Cherry Lodge
Peterborough City Council,Children's & Education Services - Children's Social Care,Family Support Services,Supplies and Services,20/05/2011,345103,4187.5,REVENUE,Peterborough Provider Services
Peterborough City Council,Children's & Education Services - Children's Social Care,Family Support Services,Supplies and Services,20/05/2011,345143,4187.5,REVENUE,Peterborough Provider Services
Peterborough City Council,Children's & Education Services - Children's Social Care,Family Support Services,Supplies and Services,20/05/2011,360039,4187.5,REVENUE,Peterborough Provider Services
Peterborough City Council,"Cultural, Environmental and Planning Services",Community Development,Premises,20/05/2011,378508,522.65,REVENUE,Siemens Plc
Peterborough City Council,Housing Services,Housing Benefits,Supplies and Services,20/05/2011,383982,4806,REVENUE,Experian Ltd
Peterborough City Council,Children's & Education Services - Children's Social Care,Other Children's & Families Services,Employees,20/05/2011,384357,1731.6,REVENUE,Medicare First
Peterborough City Council,Children's & Education Services - Children's Social Care,Family Support Services,Employees,20/05/2011,384530,1254.47,REVENUE,Advantage Healthcare Nursing & Care Ltd
Peterborough City Council,Children's & Education Services - Children's Social Care,More than one Service Division,Employees,20/05/2011,386590,1596,REVENUE,Care Recruitment UK Ltd
Peterborough City Council,Housing Services,Private Sector Housing Renewal,Supplies and Services,20/05/2011,386767,651.32,REVENUE,Zest Cleaning Services
Peterborough City Council,"Cultural, Environmental and Planning Services",Community Development,Supplies and Services,20/05/2011,386923,1034,REVENUE,Gunthorpe Harriers
Peterborough City Council,Children's & Education Services - Education,Non-School Funding,Supplies and Services,20/05/2011,386984,600,REVENUE,Southfields Nursery
Peterborough City Council,"Cultural, Environmental and Planning Services",Community Safety (CCTV),Premises,20/05/2011,387074,1979.89,REVENUE,Adcock Refrig/air Conditioning Ltd
Peterborough City Council,Deficit/(Surplus) on Trading Undertakings,Trading Account Surpluses & Deficits,Premises,20/05/2011,387085,542.84,REVENUE,T Clarke East Limited
Peterborough City Council,Deficit/(Surplus) on Trading Undertakings,Trading Account Surpluses & Deficits,Supplies and Services,20/05/2011,387087,1413.6,REVENUE,T Clarke East Limited
Peterborough City Council,Capital,Capital,Capital Pending Update to BS,20/05/2011,387091,1172.4,CAPITAL,T Clarke East Limited
Peterborough City Council,Children's & Education Services - Education,Non-School Funding,Transport,20/05/2011,387097,1761.6,REVENUE,3 Star Ambassador Taxis
Peterborough City Council,More than one Service Area Category,More than one Service Division,More than one Expenses Type,20/05/2011,387110,1027.2,REVENUE,Goldstar Cabs Ltd
Peterborough City Council,Children's & Education Services - Education,Non-School Funding,Transport,20/05/2011,387111,955.8,REVENUE,Goldstar Cabs Ltd
Peterborough City Council,Children's & Education Services - Education,Non-School Funding,Transport,20/05/2011,387112,873.6,REVENUE,Goldstar Cabs Ltd
Peterborough City Council,Children's & Education Services - Education,Non-School Funding,Transport,20/05/2011,387114,816,REVENUE,Goldstar Cabs Ltd
Peterborough City Council,Deficit/(Surplus) on Trading Undertakings,Trading Account Surpluses & Deficits,Premises,20/05/2011,387124,989.29,REVENUE,T Clarke East Limited
Peterborough City Council,Capital,Capital,Capital Pending Update to BS,20/05/2011,387136,918,CAPITAL,P J Services Ltd
Peterborough City Council,Capital,Capital,Capital Pending Update to BS,20/05/2011,387137,3927.53,CAPITAL,Frederick F Smith (Builders) Ltd
Peterborough City Council,"Highways, Roads & Transport Services","Environmental, Safety & Routine Maintenance",Premises,20/05/2011,387140,1440,REVENUE,H R Contracting Ltd
Peterborough City Council,More than one Service Area Category,More than one Service Division,Balance Sheet,20/05/2011,387141,967.2,Balance Sheet,Redacted Personal Data
Peterborough City Council,"Highways, Roads & Transport Services","Environmental, Safety & Routine Maintenance",Supplies and Services,20/05/2011,387145,700.32,REVENUE,H R Contracting Ltd
Peterborough City Council,More than one Service Area Category,More than one Service Division,Balance Sheet,20/05/2011,387162,3300,Balance Sheet,Macks Solicitors
Peterborough City Council,"Cultural, Environmental and Planning Services",Economic Development,Third Party Payments,20/05/2011,387170,23054.4,REVENUE,UK cntr for Economic & Env Dev.
Peterborough City Council,Housing Services,Supporting People,Third Party Payments,20/05/2011,387187,1094.07,REVENUE,Accent Nene Housing Soc. Ltd
Peterborough City Council,Housing Services,Supporting People,Third Party Payments,20/05/2011,387188,23153.64,REVENUE,YMCA Cambridge & Peterborough
Peterborough City Council,Housing Services,Supporting People,Third Party Payments,20/05/2011,387190,2222.25,REVENUE,Terrence Higgins Trust Ltd
Peterborough City Council,Housing Services,Supporting People,Third Party Payments,20/05/2011,387193,10190.99,REVENUE,Stonham Housing Association
Peterborough City Council,Housing Services,Supporting People,Third Party Payments,20/05/2011,387194,5176.38,REVENUE,Springboard Housing Association
Peterborough City Council,Housing Services,Supporting People,Third Party Payments,20/05/2011,387195,1777.8,REVENUE,Peterborough Provider Services
Peterborough City Council,Housing Services,Supporting People,Third Party Payments,20/05/2011,387196,5250.72,REVENUE,Peterborough PCT
Peterborough City Council,Housing Services,Supporting People,Third Party Payments,20/05/2011,387197,1777.8,REVENUE,Peterborough PCT
Peterborough City Council,Housing Services,Supporting People,Third Party Payments,20/05/2011,387198,5017.14,REVENUE,Peterborough Womens Aid
Peterborough City Council,Housing Services,Supporting People,Third Party Payments,20/05/2011,387199,2933.36,REVENUE,NACRO
Peterborough City Council,Housing Services,Supporting People,Third Party Payments,20/05/2011,387200,1415.93,REVENUE,Minster General Housing
Peterborough City Council,Housing Services,Supporting People,Third Party Payments,20/05/2011,387206,548.08,REVENUE,Hanover Housing Association
Peterborough City Council,Housing Services,Supporting People,Third Party Payments,20/05/2011,387208,19236,REVENUE,Cross Keys Homes
Peterborough City Council,Housing Services,Supporting People,Third Party Payments,20/05/2011,387211,62521.23,REVENUE,Axiom Housing Association
Peterborough City Council,Housing Services,Supporting People,Third Party Payments,20/05/2011,387213,1041.65,REVENUE,Anchor Trust
Peterborough City Council,More than one Service Area Category,More than one Service Division,More than one Expenses Type,20/05/2011,387217,20617.44,"Mixture of Capital, Revenue and/or Balance Sheet",T G Development Ltd
Peterborough City Council,Capital,Capital,Capital Pending Update to BS,20/05/2011,387221,895.76,CAPITAL,Eaga Plc
Peterborough City Council,Children's & Education Services - Children's Social Care,Family Support Services,Supplies and Services,20/05/2011,387250,709.02,REVENUE,PHS Group Plc
Peterborough City Council,Capital,Capital,Capital Pending Update to BS,20/05/2011,387276,43008.53,CAPITAL,Acrabuild (Anglia) Ltd
Peterborough City Council,Support Services,Support Services,Premises,20/05/2011,387277,6825.62,REVENUE,E.ON Energy
Peterborough City Council,Support Services,Support Services,Premises,20/05/2011,387278,585.95,REVENUE,British Gas Business
Peterborough City Council,Support Services,Support Services,Premises,20/05/2011,387279,4340,REVENUE,Eastern Shires Purchasing Organisation
Peterborough City Council,Support Services,Support Services,Premises,20/05/2011,387281,4262.2,REVENUE,British Gas Business
Peterborough City Council,More than one Service Area Category,More than one Service Division,Balance Sheet,20/05/2011,387288,752.13,Balance Sheet,Redacted Personal Data
Peterborough City Council,"Highways, Roads & Transport Services","Environmental, Safety & Routine Maintenance",Supplies and Services,20/05/2011,387301,960,REVENUE,Siemens Plc
Peterborough City Council,More than one Service Area Category,More than one Service Division,More than one Expenses Type,20/05/2011,387302,2186.82,REVENUE,Peterborough City Council
Peterborough City Council,Children's & Education Services - Education,All Schools - apportion across sectors,Supplies and Services,20/05/2011,387308,76848,REVENUE,E2BN
Peterborough City Council,Children's & Education Services - Education,All Schools - apportion across sectors,Supplies and Services,20/05/2011,387325,23648.26,REVENUE,E2BN
Peterborough City Council,Children's & Education Services - Children's Social Care,Other Children's & Families Services,Supplies and Services,20/05/2011,387331,14800,REVENUE,Peterborough Diocesan Family Care
Peterborough City Council,Children's & Education Services - Children's Social Care,More than one Service Division,More than one Expenses Type,20/05/2011,387388,986.34,REVENUE,Children & Families Looked After Children
Peterborough City Council,More than one Service Area Category,More than one Service Division,More than one Expenses Type,20/05/2011,387392,1848,"Mixture of Capital, Revenue and/or Balance Sheet",Optimum Plumbing & Heating Ltd
Peterborough City Council,More than one Service Area Category,More than one Service Division,More than one Expenses Type,20/05/2011,387393,5625.9,"Mixture of Capital, Revenue and/or Balance Sheet",Thermowall Ltd
Peterborough City Council,Children's & Education Services - Children's Social Care,Support Services & Management Costs,Employees,23/05/2011,374768,2340,REVENUE,Psysoft Ltd
Peterborough City Council,Housing Services,Private Sector Housing Renewal,Supplies and Services,23/05/2011,384389,1831.75,REVENUE,Nightingale Services
Peterborough City Council,Children's & Education Services - Children's Social Care,Support Services & Management Costs,Employees,23/05/2011,384405,2568,REVENUE,Blue Group International Ltd
Peterborough City Council,Children's & Education Services - Children's Social Care,More than one Service Division,Employees,23/05/2011,384493,1664.4,REVENUE,Care Recruitment UK Ltd
Peterborough City Council,Capital,Capital,Capital Pending Update to BS,23/05/2011,384496,3588,CAPITAL,Serco Ltd
Peterborough City Council,"Cultural, Environmental and Planning Services",Waste Disposal,Supplies and Services,23/05/2011,384498,11082,REVENUE,Serco Ltd
Peterborough City Council,Housing Services,Housing Benefits,Supplies and Services,23/05/2011,384503,1005.6,REVENUE,Serco Ltd
Peterborough City Council,"Cultural, Environmental and Planning Services",Waste Disposal,Supplies and Services,23/05/2011,384512,12000,REVENUE,Serco Ltd
Peterborough City Council,Support Services,Support Services,Supplies and Services,23/05/2011,384515,897.6,REVENUE,Serco Ltd
Peterborough City Council,Support Services,Support Services,Supplies and Services,23/05/2011,384517,1077.58,REVENUE,Serco Ltd
Peterborough City Council,Children's & Education Services - Children's Social Care,Children Looked After,Supplies and Services - Transfer Payments,23/05/2011,384626,3764.33,REVENUE,Five Rivers
Peterborough City Council,Support Services,Support Services,Employees,23/05/2011,384866,1093.61,REVENUE,Venn Group Ltd
Peterborough City Council,Children's & Education Services - Children's Social Care,Children Looked After,Transport,23/05/2011,384950,1150,REVENUE,Stagecoach in Peterborough
Peterborough City Council,Children's & Education Services - Education,Secondary,Premises,23/05/2011,385396,806572.41,REVENUE,IIC by Education (P'boro) Ltd
Peterborough City Council,Housing Services,Housing Benefits,Employees,23/05/2011,385496,684,REVENUE,Zebra Business Services Limited
Peterborough City Council,Children's & Education Services - Children's Social Care,Other Children's & Families Services,Supplies and Services,23/05/2011,385503,4500,REVENUE,Peterborough Diocesan Family Care
Peterborough City Council,Children's & Education Services - Education,Non-School Funding,Supplies and Services,23/05/2011,386256,720,REVENUE,Newark Play Association Ltd
Peterborough City Council,Deficit/(Surplus) on Trading Undertakings,Trading Account Surpluses & Deficits,Transport,23/05/2011,386681,660.37,REVENUE,Derek Gladwin Ltd
Peterborough City Council,More than one Service Area Category,More than one Service Division,More than one Expenses Type,23/05/2011,386695,26133.94,"Mixture of Capital, Revenue and/or Balance Sheet",Ringway Infrastructure Services
Peterborough City Council,Children's & Education Services - Children's Social Care,Children Looked After,Supplies and Services - Transfer Payments,23/05/2011,386807,1826.35,REVENUE,PC Homes
Peterborough City Council,Children's & Education Services - Children's Social Care,Children Looked After,Supplies and Services - Transfer Payments,23/05/2011,386808,690,REVENUE,PC Homes
Peterborough City Council,"Cultural, Environmental and Planning Services",Environmental Initiatives,Premises,23/05/2011,387218,799.07,REVENUE,Cross Keys Homes
Peterborough City Council,Children's & Education Services - Children's Social Care,Children Looked After,Supplies and Services,23/05/2011,387270,890.66,REVENUE,Redacted Personal Data
Peterborough City Council,"Cultural, Environmental and Planning Services",Tourism,Supplies and Services,23/05/2011,387286,750.6,REVENUE,Peterborough Playgoers
Peterborough City Council,Support Services,Support Services,Premises,23/05/2011,387391,47585.86,REVENUE,Southern Electric
Peterborough City Council,More than one Service Area Category,More than one Service Division,More than one Expenses Type,23/05/2011,387429,1144.5,"Mixture of Capital, Revenue and/or Balance Sheet",Thermowall Ltd
Peterborough City Council,More than one Service Area Category,More than one Service Division,More than one Expenses Type,23/05/2011,387430,976.5,"Mixture of Capital, Revenue and/or Balance Sheet",Thermowall Ltd
Peterborough City Council,More than one Service Area Category,More than one Service Division,More than one Expenses Type,23/05/2011,387431,4687.2,"Mixture of Capital, Revenue and/or Balance Sheet",Jones Heating Ltd
Peterborough City Council,More than one Service Area Category,More than one Service Division,More than one Expenses Type,23/05/2011,387433,3909,"Mixture of Capital, Revenue and/or Balance Sheet",P F S Builders & Contractors
Peterborough City Council,Children's & Education Services - Education,Non-School Funding,Supplies and Services,23/05/2011,387438,5590.2,REVENUE,Kindercare Pre-School Ltd
Peterborough City Council,Children's & Education Services - Children's Social Care,Children Looked After,Transport,23/05/2011,387467,2025.6,REVENUE,A2B Euro Cars
Peterborough City Council,Children's & Education Services - Children's Social Care,Children Looked After,Transport,23/05/2011,387468,777.6,REVENUE,A2B Euro Cars
Peterborough City Council,Children's & Education Services - Children's Social Care,Children Looked After,Transport,23/05/2011,387469,748.8,REVENUE,A2B Euro Cars
Peterborough City Council,Children's & Education Services - Education,Secondary,Supplies and Services,23/05/2011,387484,3277.8,REVENUE,Fischer Education Project Ltd
Peterborough City Council,Support Services,Support Services,Supplies and Services,23/05/2011,387507,2906.4,REVENUE,Browne Jacobson
Peterborough City Council,Children's & Education Services - Children's Social Care,Support Services & Management Costs,Supplies and Services,23/05/2011,387521,1372.8,REVENUE,Psychology Clinic of East Anglia
Peterborough City Council,Central Services to the Public,Elections,Supplies and Services,23/05/2011,387523,3780,REVENUE,Versapak International Ltd
Peterborough City Council,Central Services to the Public,Elections,Supplies and Services,23/05/2011,387524,3812.69,REVENUE,Versapak International Ltd
Peterborough City Council,Drainage and Flood Levies,Precepts & Levies,Premises,23/05/2011,387554,3775,REVENUE,Nene Washlands Commissioners
Peterborough City Council,Capital,Capital,Capital Pending Update to BS,23/05/2011,387579,529.19,CAPITAL,Johnston Press Midlands Division
Peterborough City Council,Capital,Capital,Capital Pending Update to BS,23/05/2011,387582,529.19,CAPITAL,Johnston Press Midlands Division
Peterborough City Council,Children's & Education Services - Education,Non-School Funding,Third Party Payments,23/05/2011,387619,9500,REVENUE,Arthur Mellows Village College
Peterborough City Council,Deficit/(Surplus) on Trading Undertakings,Trading Account Surpluses & Deficits,Supplies and Services,23/05/2011,387625,2846.3,REVENUE,Barron Clark Castings Ltd
Peterborough City Council,Deficit/(Surplus) on Trading Undertakings,Trading Account Surpluses & Deficits,Supplies and Services,23/05/2011,387626,564.5,REVENUE,Barron Clark Castings Ltd
Peterborough City Council,Deficit/(Surplus) on Trading Undertakings,Trading Account Surpluses & Deficits,Supplies and Services,23/05/2011,387628,625.87,REVENUE,Barron Clark Castings Ltd
Peterborough City Council,Children's & Education Services - Children's Social Care,Family Support Services,More than one Expenses Type,23/05/2011,387640,501.47,REVENUE,The Manor
Peterborough City Council,Children's & Education Services - Children's Social Care,Other Children's & Families Services,Third Party Payments,25/05/2011,374846,15577.66,REVENUE,Papworth Trust
Peterborough City Council,Children's & Education Services - Children's Social Care,Other Children's & Families Services,Third Party Payments,25/05/2011,377307,14754.25,REVENUE,Family Action
Peterborough City Council,Children's & Education Services - Children's Social Care,Family Support Services,Third Party Payments,25/05/2011,377312,15000,REVENUE,Family Action
Peterborough City Council,Children's & Education Services - Children's Social Care,Other Children's & Families Services,Third Party Payments,25/05/2011,377448,18837.5,REVENUE,Family Action
Peterborough City Council,Children's & Education Services - Children's Social Care,Other Children's & Families Services,Employees,25/05/2011,378344,1797.6,REVENUE,Medicare First
Peterborough City Council,Capital,Capital,Capital Pending Update to BS,25/05/2011,378523,53592.18,CAPITAL,Morris Homes Limited
Peterborough City Council,Children's & Education Services - Children's Social Care,Children Looked After,Supplies and Services - Transfer Payments,25/05/2011,379550,-1994.2,REVENUE,Cornerways Childrens Services Ltd
Peterborough City Council,Children's & Education Services - Children's Social Care,Youth Justice,Supplies and Services,25/05/2011,381658,10500,REVENUE,The Froglife Trust
Peterborough City Council,Children's & Education Services - Children's Social Care,Children Looked After,Supplies and Services - Transfer Payments,25/05/2011,382373,10821.3,REVENUE,BetterCare Keys Ltd
Peterborough City Council,More than one Service Area Category,More than one Service Division,More than one Expenses Type,25/05/2011,382633,5502,"Mixture of Capital, Revenue and/or Balance Sheet",Atkins Limited
Peterborough City Council,Capital,Capital,Capital Pending Update to BS,25/05/2011,382910,2854.08,CAPITAL,The Technology Forge Ltd
Peterborough City Council,Children's & Education Services - Children's Social Care,Children Looked After,Supplies and Services - Transfer Payments,25/05/2011,383839,11957.01,REVENUE,Continuum Care & Educ. Group.
Peterborough City Council,Children's & Education Services - Children's Social Care,Children Looked After,Supplies and Services - Transfer Payments,25/05/2011,383932,3179.24,REVENUE,Fostering Options Ltd
Peterborough City Council,"Cultural, Environmental and Planning Services",Community Development,Supplies and Services,25/05/2011,384491,665.96,REVENUE,Triple SSS Limited
Peterborough City Council,Children's & Education Services - Children's Social Care,Other Children's & Families Services,Employees,25/05/2011,384492,1378.58,REVENUE,Blue Group International Ltd
Peterborough City Council,Capital,Capital,Capital Pending Update to BS,25/05/2011,384607,1793.82,CAPITAL,The Technology Forge Ltd
Peterborough City Council,Children's & Education Services - Education,Non-School Funding,Supplies and Services,25/05/2011,384757,1005.6,REVENUE,Serco Ltd
Peterborough City Council,Children's & Education Services - Children's Social Care,Other Children's & Families Services,Employees,25/05/2011,384801,3300,REVENUE,Flick Schofield Ltd
Peterborough City Council,Children's & Education Services - Children's Social Care,Other Children's & Families Services,Third Party Payments,25/05/2011,384828,8000,REVENUE,Vivacity Culture and Leisure
Peterborough City Council,"Cultural, Environmental and Planning Services",Economic Development,Employees,25/05/2011,384851,11214.47,REVENUE,SFS Services Ltd
Peterborough City Council,Children's & Education Services - Children's Social Care,Family Support Services,Supplies and Services,25/05/2011,384856,1714.8,REVENUE,Serco Ltd
Peterborough City Council,Children's & Education Services - Children's Social Care,Children Looked After,Supplies and Services,25/05/2011,384864,1112,REVENUE,Redacted Personal Data
Peterborough City Council,Children's & Education Services - Children's Social Care,Children Looked After,Supplies and Services - Transfer Payments,25/05/2011,384947,3703.57,REVENUE,Fosterplus Ltd
Peterborough City Council,"Cultural, Environmental and Planning Services",Economic Development,Employees,25/05/2011,384948,1500,REVENUE,Mymar Training Ltd
Peterborough City Council,Children's & Education Services - Education,Non-School Funding,Transport,25/05/2011,384957,528,REVENUE,Ash School Transport
Peterborough City Council,Children's & Education Services - Education,Non-School Funding,Transport,25/05/2011,384959,576,REVENUE,Ash School Transport
Peterborough City Council,Children's & Education Services - Education,Non-School Funding,Transport,25/05/2011,384961,576,REVENUE,Ash School Transport
Peterborough City Council,Children's & Education Services - Education,Non-School Funding,Transport,25/05/2011,384963,624,REVENUE,Ash School Transport
Peterborough City Council,Children's & Education Services - Education,Non-School Funding,Transport,25/05/2011,384969,1075.2,REVENUE,King Cabz
Peterborough City Council,"Highways, Roads & Transport Services",Public Transport,Supplies and Services,25/05/2011,384979,1032,REVENUE,Pindar plc
Peterborough City Council,"Cultural, Environmental and Planning Services","Cemetery, Crematorium & Mortuary Services",Premises,25/05/2011,384980,594,REVENUE,Zagota Creations Ltd
Peterborough City Council,Deficit/(Surplus) on Trading Undertakings,Trading Account Surpluses & Deficits,Premises,25/05/2011,385165,720,REVENUE,The Technology Forge Ltd
Peterborough City Council,Children's & Education Services - Children's Social Care,Support Services & Management Costs,Employees,25/05/2011,385175,958.8,REVENUE,SG Training Ltd
Peterborough City Council,Children's & Education Services - Children's Social Care,Other Children's & Families Services,Third Party Payments,25/05/2011,385176,7500,REVENUE,DRINKSENSE
Peterborough City Council,Children's & Education Services - Children's Social Care,Children's Services - Commissioning and Social Work,Third Party Payments,25/05/2011,385177,9927.25,REVENUE,DRINKSENSE
Peterborough City Council,Support Services,Support Services,Supplies and Services,25/05/2011,385186,3828,REVENUE,Simply Services Ltd
Peterborough City Council,Children's & Education Services - Children's Social Care,Family Support Services,Employees,25/05/2011,385188,547.2,REVENUE,Movement 2
Peterborough City Council,Support Services,Support Services,Supplies and Services,25/05/2011,385196,720,REVENUE,Redacted Personal Data
Peterborough City Council,Children's & Education Services - Children's Social Care,Other Children's & Families Services,Third Party Payments,25/05/2011,385198,14536.25,REVENUE,DRINKSENSE
Peterborough City Council,Central Services to the Public,Local Tax,Supplies and Services,25/05/2011,385219,2997.06,REVENUE,Rossendales C B Ltd
Peterborough City Council,Children's & Education Services - Children's Social Care,Children Looked After,Supplies and Services - Transfer Payments,25/05/2011,385221,5978.66,REVENUE,Alliance Foster Care
Peterborough City Council,"Cultural, Environmental and Planning Services",Economic Development,Third Party Payments,25/05/2011,385235,4024.92,REVENUE,Railworld
Peterborough City Council,Children's & Education Services - Children's Social Care,Support Services & Management Costs,Supplies and Services,25/05/2011,385246,888,REVENUE,Expert Witness 24-7 Service Ltd
Peterborough City Council,Deficit/(Surplus) on Trading Undertakings,Trading Account Surpluses & Deficits,Supplies and Services,25/05/2011,385260,2340,REVENUE,Brammer
Peterborough City Council,Deficit/(Surplus) on Trading Undertakings,Trading Account Surpluses & Deficits,Supplies and Services,25/05/2011,385262,1560,REVENUE,Brammer
Peterborough City Council,Housing Services,Private Sector Housing Renewal,Supplies and Services,25/05/2011,385263,1200,REVENUE,Northgate Information Solutions
Peterborough City Council,Deficit/(Surplus) on Trading Undertakings,Trading Account Surpluses & Deficits,Supplies and Services,25/05/2011,385264,1560,REVENUE,Brammer
Peterborough City Council,Capital,Capital,Capital Pending Update to BS,25/05/2011,385273,1950,CAPITAL,ECUS Ltd
Peterborough City Council,"Cultural, Environmental and Planning Services","Cemetery, Crematorium & Mortuary Services",Premises,25/05/2011,385284,675.78,REVENUE,Yaboo Company Ltd T/a Wesley Music
Peterborough City Council,Children's & Education Services - Education,Non-School Funding,Transport,25/05/2011,385362,1520,REVENUE,Grettons Coaches
Peterborough City Council,Children's & Education Services - Education,Non-School Funding,Transport,25/05/2011,385363,1640,REVENUE,Grettons Coaches
Peterborough City Council,Children's & Education Services - Education,Non-School Funding,Transport,25/05/2011,385364,1480,REVENUE,Grettons Coaches
Peterborough City Council,More than one Service Area Category,More than one Service Division,Transport,25/05/2011,385365,1472,REVENUE,Grettons Coaches
Peterborough City Council,Children's & Education Services - Education,Non-School Funding,Transport,25/05/2011,385366,1472,REVENUE,Grettons Coaches
Peterborough City Council,Children's & Education Services - Education,Non-School Funding,Transport,25/05/2011,385367,1480,REVENUE,Grettons Coaches
Peterborough City Council,Children's & Education Services - Education,Non-School Funding,Transport,25/05/2011,385368,1665,REVENUE,Grettons Coaches
Peterborough City Council,Children's & Education Services - Education,Non-School Funding,Transport,25/05/2011,385369,1773,REVENUE,Grettons Coaches
Peterborough City Council,Children's & Education Services - Education,Non-School Funding,Transport,25/05/2011,385373,546,REVENUE,R T Enterprises Ltd T/A Royal Taxis
Peterborough City Council,Children's & Education Services - Education,Non-School Funding,Transport,25/05/2011,385374,576,REVENUE,R T Enterprises Ltd T/A Royal Taxis
Peterborough City Council,Children's & Education Services - Education,Non-School Funding,Transport,25/05/2011,385380,1298,REVENUE,Hampton Private Hire
Peterborough City Council,Children's & Education Services - Children's Social Care,Family Support Services,Premises,25/05/2011,385392,675.6,REVENUE,Thorokleen Ltd
Peterborough City Council,Capital,Capital,Capital Pending Update to BS,25/05/2011,385438,4904.62,CAPITAL,Atkins Limited
Peterborough City Council,Capital,Capital,Capital Pending Update to BS,25/05/2011,385439,4058.44,CAPITAL,Atkins Limited
Peterborough City Council,"Highways, Roads & Transport Services",Street Lighting,Transport,25/05/2011,385441,3074.77,REVENUE,Atkins Limited
Peterborough City Council,"Highways, Roads & Transport Services",Parking Services,Premises,25/05/2011,385464,90000,REVENUE,Jones Lang LaSalle
Peterborough City Council,"Cultural, Environmental and Planning Services",Culture & Heritage,Third Party Payments,25/05/2011,385488,600,REVENUE,The Morton Patnership
Peterborough City Council,Children's & Education Services - Children's Social Care,Children Looked After,Supplies and Services - Transfer Payments,25/05/2011,385490,4020,REVENUE,Key2
Peterborough City Council,Children's & Education Services - Children's Social Care,Children Looked After,Supplies and Services - Transfer Payments,25/05/2011,385491,4020,REVENUE,Key2
Peterborough City Council,Children's & Education Services - Children's Social Care,Children Looked After,Supplies and Services - Transfer Payments,25/05/2011,385494,3338.7,REVENUE,National Fostering Agency
Peterborough City Council,Children's & Education Services - Children's Social Care,Other Children's & Families Services,Supplies and Services,25/05/2011,385504,669.9,REVENUE,Purple Professional Services Ltd
Peterborough City Council,Children's & Education Services - Children's Social Care,Children Looked After,Supplies and Services - Transfer Payments,25/05/2011,385509,2938.8,REVENUE,National Fostering Agency
Peterborough City Council,Children's & Education Services - Children's Social Care,Children Looked After,Supplies and Services - Transfer Payments,25/05/2011,385510,3005.1,REVENUE,National Fostering Agency
Peterborough City Council,Capital,Capital,Capital Pending Update to BS,25/05/2011,385511,17798.4,CAPITAL,AECOM Ltd
Peterborough City Council,"Highways, Roads & Transport Services",Regulatory services,Supplies and Services,25/05/2011,385512,825,REVENUE,Unity Automotive Peterborough Ltd
Peterborough City Council,Children's & Education Services - Children's Social Care,Children Looked After,Supplies and Services - Transfer Payments,25/05/2011,385513,14956.5,REVENUE,Cornerways Childrens Services Ltd
Peterborough City Council,"Highways, Roads & Transport Services",Street Lighting,Supplies and Services,25/05/2011,385539,525.6,REVENUE,UK Power Networks (operations) Ltd
Peterborough City Council,Children's & Education Services - Children's Social Care,Children Looked After,Supplies and Services - Transfer Payments,25/05/2011,385540,4896.6,REVENUE,Tree House Care Fostering Solutions Ltd
Peterborough City Council,Adult Social Care,Other Adult Services,Supplies and Services,25/05/2011,385570,1709.4,REVENUE,Frontier Medical
Peterborough City Council,Children's & Education Services - Children's Social Care,Children Looked After,Supplies and Services - Transfer Payments,25/05/2011,385587,3338.7,REVENUE,National Fostering Agency
Peterborough City Council,Children's & Education Services - Children's Social Care,Children Looked After,Supplies and Services - Transfer Payments,25/05/2011,385591,2112.9,REVENUE,National Fostering Agency
Peterborough City Council,Children's & Education Services - Children's Social Care,Children Looked After,Supplies and Services - Transfer Payments,25/05/2011,385594,2704.08,REVENUE,National Fostering Agency
Peterborough City Council,"Cultural, Environmental and Planning Services",Economic Development,Employees,25/05/2011,385601,1727.14,REVENUE,Hays Specialist Recruitment Ltd
Peterborough City Council,"Highways, Roads & Transport Services","Transport planning, policy and strategy",Employees,25/05/2011,385603,1044,REVENUE,Hays Specialist Recruitment Ltd
Peterborough City Council,Adult Social Care,Other Adult Services,Supplies and Services,25/05/2011,385627,3902.4,REVENUE,Frontier Medical
Peterborough City Council,Children's & Education Services - Education,Non-School Funding,Transport,25/05/2011,385635,556.8,REVENUE,A2B Euro Cars
Peterborough City Council,Children's & Education Services - Education,Non-School Funding,Transport,25/05/2011,385636,554.32,REVENUE,A2B Euro Cars
Peterborough City Council,Children's & Education Services - Education,Non-School Funding,Transport,25/05/2011,385637,504,REVENUE,A2B Euro Cars
Peterborough City Council,Children's & Education Services - Education,Non-School Funding,Transport,25/05/2011,385638,576,REVENUE,A2B Euro Cars
Peterborough City Council,Children's & Education Services - Education,Non-School Funding,Transport,25/05/2011,385639,672,REVENUE,A2B Euro Cars
Peterborough City Council,Children's & Education Services - Education,Non-School Funding,Transport,25/05/2011,385640,758.31,REVENUE,A2B Euro Cars
Peterborough City Council,Children's & Education Services - Education,Non-School Funding,Transport,25/05/2011,385641,921.6,REVENUE,A2B Euro Cars
Peterborough City Council,Children's & Education Services - Education,Non-School Funding,Transport,25/05/2011,385642,504,REVENUE,A2B Euro Cars
Peterborough City Council,Children's & Education Services - Education,Non-School Funding,Transport,25/05/2011,385646,518.4,REVENUE,A2B Euro Cars
Peterborough City Council,Children's & Education Services - Education,Non-School Funding,Transport,25/05/2011,385647,511.68,REVENUE,A2B Euro Cars
Peterborough City Council,Children's & Education Services - Education,Non-School Funding,Transport,25/05/2011,385651,638.4,REVENUE,A2B Euro Cars
Peterborough City Council,Children's & Education Services - Education,Non-School Funding,Transport,25/05/2011,385652,614.4,REVENUE,A2B Euro Cars
Peterborough City Council,"Highways, Roads & Transport Services",More than one Service Division,Transport,25/05/2011,385666,28782.2,REVENUE,Atkins Limited
Peterborough City Council,"Highways, Roads & Transport Services","Transport planning, policy and strategy",Transport,25/05/2011,385667,6623.65,REVENUE,Atkins Limited
Peterborough City Council,"Cultural, Environmental and Planning Services",Economic Development,Employees,25/05/2011,385673,1112.08,REVENUE,Randstad CPE
Peterborough City Council,Capital,Capital,Capital Pending Update to BS,25/05/2011,385677,626.69,CAPITAL,Atkins Limited
Peterborough City Council,"Highways, Roads & Transport Services","Transport planning, policy and strategy",Transport,25/05/2011,385680,5055.35,REVENUE,Atkins Limited
Peterborough City Council,Children's & Education Services - Education,Secondary,Supplies and Services,25/05/2011,385682,4976.4,REVENUE,Rider Levett Bucknall UK Ltd
Peterborough City Council,Children's & Education Services - Children's Social Care,Family Support Services,Employees,25/05/2011,385684,1445.94,REVENUE,Swim
Peterborough City Council,"Highways, Roads & Transport Services",Public Transport,Supplies and Services,25/05/2011,385756,1500,REVENUE,R Kime & Co Ltd
Peterborough City Council,"Highways, Roads & Transport Services",Public Transport,Supplies and Services,25/05/2011,385757,832,REVENUE,R Kime & Co Ltd
Peterborough City Council,"Highways, Roads & Transport Services",Public Transport,Supplies and Services,25/05/2011,385759,2624.24,REVENUE,R Kime & Co Ltd
Peterborough City Council,Children's & Education Services - Education,Non-School Funding,Transport,25/05/2011,386166,988.8,REVENUE,A2B Euro Cars
Peterborough City Council,Children's & Education Services - Education,Non-School Funding,Transport,25/05/2011,386167,864,REVENUE,A2B Euro Cars
Peterborough City Council,Children's & Education Services - Education,Non-School Funding,Transport,25/05/2011,386168,940.8,REVENUE,A2B Euro Cars
Peterborough City Council,Children's & Education Services - Education,Non-School Funding,Transport,25/05/2011,386171,1363.2,REVENUE,Woodgrange Travel Ltd t/a DiamondCars
Peterborough City Council,Children's & Education Services - Education,Non-School Funding,Transport,25/05/2011,386173,681.6,REVENUE,Woodgrange Travel Ltd t/a DiamondCars
Peterborough City Council,Children's & Education Services - Education,Non-School Funding,Transport,25/05/2011,386176,1238.4,REVENUE,Woodgrange Travel Ltd t/a DiamondCars
Peterborough City Council,Children's & Education Services - Education,Non-School Funding,Transport,25/05/2011,386177,835.2,REVENUE,Woodgrange Travel Ltd t/a DiamondCars
Peterborough City Council,Children's & Education Services - Education,Non-School Funding,Transport,25/05/2011,386178,566.4,REVENUE,Woodgrange Travel Ltd t/a DiamondCars
Peterborough City Council,Children's & Education Services - Education,Non-School Funding,Transport,25/05/2011,386179,547.2,REVENUE,Woodgrange Travel Ltd t/a DiamondCars
Peterborough City Council,Children's & Education Services - Education,Non-School Funding,Transport,25/05/2011,386181,1251.6,REVENUE,Woodgrange Travel Ltd t/a DiamondCars
Peterborough City Council,Children's & Education Services - Education,Non-School Funding,Transport,25/05/2011,386182,768,REVENUE,Woodgrange Travel Ltd t/a DiamondCars
Peterborough City Council,Children's & Education Services - Education,Non-School Funding,Transport,25/05/2011,386183,980,REVENUE,Eames Minibuses
Peterborough City Council,Children's & Education Services - Education,Non-School Funding,Transport,25/05/2011,386184,805,REVENUE,Eames Minibuses
Peterborough City Council,Children's & Education Services - Education,Non-School Funding,Transport,25/05/2011,386193,864,REVENUE,Woodgrange Travel Ltd t/a DiamondCars
Peterborough City Council,Children's & Education Services - Education,Non-School Funding,Transport,25/05/2011,386194,772.8,REVENUE,Woodgrange Travel Ltd t/a DiamondCars
Peterborough City Council,Adult Social Care,Other Adult Services,Supplies and Services,25/05/2011,386215,866.48,REVENUE,Frontier Medical
Peterborough City Council,Children's & Education Services - Education,Non-School Funding,Supplies and Services,25/05/2011,386234,29243.33,REVENUE,Action For Children
Peterborough City Council,Children's & Education Services - Education,Non-School Funding,Supplies and Services,25/05/2011,386235,982.28,REVENUE,Cool Milk at School Ltd
Peterborough City Council,Housing Services,Private Sector Housing Renewal,Supplies and Services,25/05/2011,386237,930.75,REVENUE,B S Builders & Carpenters
Peterborough City Council,Housing Services,Private Sector Housing Renewal,Supplies and Services,25/05/2011,386244,1672.8,REVENUE,T G M Maintenance
Peterborough City Council,Children's & Education Services - Education,Non-School Funding,Supplies and Services,25/05/2011,386246,5665.92,REVENUE,Cool Milk Ltd
Peterborough City Council,Children's & Education Services - Children's Social Care,Children Looked After,Supplies and Services - Transfer Payments,25/05/2011,386258,11182.01,REVENUE,BetterCare Keys Ltd
Peterborough City Council,Deficit/(Surplus) on Trading Undertakings,Trading Account Surpluses & Deficits,Supplies and Services,25/05/2011,386259,816.48,REVENUE,Godric Engineering Ltd
Peterborough City Council,Deficit/(Surplus) on Trading Undertakings,Trading Account Surpluses & Deficits,Supplies and Services,25/05/2011,386262,861.84,REVENUE,Godric Engineering Ltd
Peterborough City Council,Capital,Capital,Capital Pending Update to BS,25/05/2011,386272,9781.82,CAPITAL,Peterborough Tree Services Ltd
Peterborough City Council,Children's & Education Services - Education,Non-School Funding,Transport,25/05/2011,386425,542.88,REVENUE,Woodgrange Travel Ltd t/a DiamondCars
Peterborough City Council,Children's & Education Services - Education,Non-School Funding,Transport,25/05/2011,386426,773.4,REVENUE,Woodgrange Travel Ltd t/a DiamondCars
Peterborough City Council,Children's & Education Services - Education,Non-School Funding,Transport,25/05/2011,386430,1384,REVENUE,Newborough Coaches Ltd
Peterborough City Council,Children's & Education Services - Education,Non-School Funding,Transport,25/05/2011,386431,1312,REVENUE,Newborough Coaches Ltd
Peterborough City Council,Children's & Education Services - Education,Non-School Funding,Transport,25/05/2011,386432,1668.16,REVENUE,Newborough Coaches Ltd
Peterborough City Council,Children's & Education Services - Education,Non-School Funding,Transport,25/05/2011,386435,672,REVENUE,Orton Comm. Transport Assoc. Ltd
Peterborough City Council,Children's & Education Services - Education,Non-School Funding,Transport,25/05/2011,386436,752,REVENUE,Orton Comm. Transport Assoc. Ltd
Peterborough City Council,Children's & Education Services - Education,Non-School Funding,Transport,25/05/2011,386437,800,REVENUE,Orton Comm. Transport Assoc. Ltd
Peterborough City Council,Children's & Education Services - Education,Non-School Funding,Transport,25/05/2011,386438,760,REVENUE,Orton Comm. Transport Assoc. Ltd
Peterborough City Council,Children's & Education Services - Education,Non-School Funding,Transport,25/05/2011,386450,1140.56,REVENUE,Translinc Ltd
Peterborough City Council,Children's & Education Services - Education,Non-School Funding,Transport,25/05/2011,386451,836.71,REVENUE,Translinc Ltd
Peterborough City Council,Children's & Education Services - Education,Non-School Funding,Transport,25/05/2011,386452,1014.48,REVENUE,Translinc Ltd
Peterborough City Council,Children's & Education Services - Education,Non-School Funding,Transport,25/05/2011,386453,981.92,REVENUE,Translinc Ltd
Peterborough City Council,Children's & Education Services - Children's Social Care,Children Looked After,Supplies and Services - Transfer Payments,25/05/2011,386470,8382.85,REVENUE,Next Steps Care Management Ltd
Peterborough City Council,Children's & Education Services - Children's Social Care,Children Looked After,Supplies and Services - Transfer Payments,25/05/2011,386475,3260.89,REVENUE,I S P
Peterborough City Council,Children's & Education Services - Children's Social Care,Children Looked After,Supplies and Services - Transfer Payments,25/05/2011,386476,3260.89,REVENUE,I S P
Peterborough City Council,Children's & Education Services - Children's Social Care,Children Looked After,Supplies and Services - Transfer Payments,25/05/2011,386478,5637.97,REVENUE,I S P
Peterborough City Council,Corporate & Democratic Core,Democratic Representation & Managemetn,Supplies and Services,25/05/2011,386479,900,REVENUE,Athene Communications
Peterborough City Council,Children's & Education Services - Children's Social Care,Children Looked After,Supplies and Services - Transfer Payments,25/05/2011,386481,8289.71,REVENUE,I S P
Peterborough City Council,Children's & Education Services - Children's Social Care,Children Looked After,Supplies and Services - Transfer Payments,25/05/2011,386507,845.25,REVENUE,Foster Care Associates Ltd FCA
Peterborough City Council,"Cultural, Environmental and Planning Services",Economic Development,Employees,25/05/2011,386522,1295.35,REVENUE,Hays Specialist Recruitment Ltd
Peterborough City Council,"Cultural, Environmental and Planning Services",Economic Development,Employees,25/05/2011,386523,1188,REVENUE,Hays Specialist Recruitment Ltd
Peterborough City Council,"Cultural, Environmental and Planning Services",Economic Development,Employees,25/05/2011,386524,1381.39,REVENUE,Hays Specialist Recruitment Ltd
Peterborough City Council,"Cultural, Environmental and Planning Services",Economic Development,Employees,25/05/2011,386525,1512,REVENUE,Hays Specialist Recruitment Ltd
Peterborough City Council,"Cultural, Environmental and Planning Services",Waste Collection,Supplies and Services,25/05/2011,386535,12437.06,REVENUE,H W Martin Waste Ltd
Peterborough City Council,Children's & Education Services - Children's Social Care,Support Services & Management Costs,Supplies and Services,25/05/2011,386558,2000,REVENUE,Redacted Personal Data
Peterborough City Council,Capital,Capital,Capital Pending Update to BS,25/05/2011,386559,1860,CAPITAL,Village and Urban
Peterborough City Council,Support Services,Support Services,Supplies and Services,25/05/2011,386570,2104.8,REVENUE,PHS Datashred
Peterborough City Council,Adult Social Care,Other Adult Services,Supplies and Services,25/05/2011,386575,5355,REVENUE,Consensus Mediation Limited
Peterborough City Council,"Cultural, Environmental and Planning Services",Development Control,Supplies and Services,25/05/2011,386631,588,REVENUE,Johnston Press Midlands Division
Peterborough City Council,"Highways, Roads & Transport Services",Parking Services,Supplies and Services,25/05/2011,386638,1146.62,REVENUE,Loomis UK Ltd
Peterborough City Council,More than one Service Area Category,More than one Service Division,Transport,25/05/2011,386651,1782,REVENUE,Newborough Coaches Ltd
Peterborough City Council,Children's & Education Services - Education,Non-School Funding,Transport,25/05/2011,386655,585.6,REVENUE,Peterborough Cars
Peterborough City Council,Children's & Education Services - Education,Non-School Funding,Transport,25/05/2011,386656,589.2,REVENUE,Peterborough Cars
Peterborough City Council,Children's & Education Services - Education,Non-School Funding,Transport,25/05/2011,386657,874.8,REVENUE,Peterborough Cars
Peterborough City Council,More than one Service Area Category,More than one Service Division,Transport,25/05/2011,386658,672,REVENUE,Peterborough Cars
Peterborough City Council,Children's & Education Services - Education,Non-School Funding,Transport,25/05/2011,386659,686.4,REVENUE,Peterborough Cars
Peterborough City Council,Children's & Education Services - Education,Non-School Funding,Transport,25/05/2011,386661,723.6,REVENUE,Peterborough Cars
Peterborough City Council,Children's & Education Services - Education,Non-School Funding,Transport,25/05/2011,386662,672,REVENUE,Peterborough Cars
Peterborough City Council,Deficit/(Surplus) on Trading Undertakings,Trading Account Surpluses & Deficits,Transport,25/05/2011,386676,985,REVENUE,Apex Training Services
Peterborough City Council,Deficit/(Surplus) on Trading Undertakings,Trading Account Surpluses & Deficits,Transport,25/05/2011,386685,617.04,REVENUE,Limesquare Vehicle Rental Ltd
Peterborough City Council,More than one Service Area Category,More than one Service Division,Supplies and Services,25/05/2011,386691,1948.98,REVENUE,TNT POST UK LTD
Peterborough City Council,Children's & Education Services - Children's Social Care,Children Looked After,Supplies and Services - Transfer Payments,25/05/2011,386737,-1608.1,REVENUE,Key2
Peterborough City Council,Central Services to the Public,Local Tax,Supplies and Services,25/05/2011,386738,2760.42,REVENUE,Financial Data Management
Peterborough City Council,Children's & Education Services - Children's Social Care,Youth Justice,Transport,25/05/2011,386741,730.68,REVENUE,Reliance
Peterborough City Council,"Cultural, Environmental and Planning Services",Regulatory services,Supplies and Services,25/05/2011,386762,860.4,REVENUE,Newlaw Associates Ltd
Peterborough City Council,Deficit/(Surplus) on Trading Undertakings,Trading Account Surpluses & Deficits,Transport,25/05/2011,386771,756,REVENUE,TruckEast Ltd
Peterborough City Council,Children's & Education Services - Children's Social Care,Family Support Services,Employees,25/05/2011,386802,735.12,REVENUE,Swim
Peterborough City Council,Support Services,Support Services,Supplies and Services,25/05/2011,386804,592.8,REVENUE,Speedy Couriers
Peterborough City Council,Children's & Education Services - Children's Social Care,Children Looked After,More than one Expenses Type,25/05/2011,386823,3155.7,REVENUE,I S P
Peterborough City Council,Children's & Education Services - Children's Social Care,Children Looked After,More than one Expenses Type,25/05/2011,386826,3155.7,REVENUE,I S P
Peterborough City Council,Children's & Education Services - Children's Social Care,Children Looked After,Supplies and Services - Transfer Payments,25/05/2011,386827,5456.1,REVENUE,I S P
Peterborough City Council,Support Services,Support Services,Supplies and Services,25/05/2011,386832,4896,REVENUE,K S P Consultancy
Peterborough City Council,Children's & Education Services - Children's Social Care,Children Looked After,Supplies and Services - Transfer Payments,25/05/2011,386889,10268.64,REVENUE,Direct Care Limited
Peterborough City Council,"Cultural, Environmental and Planning Services",Economic Development,Employees,25/05/2011,386890,847.3,REVENUE,Randstad CPE
Peterborough City Council,Children's & Education Services - Children's Social Care,Children Looked After,Supplies and Services - Transfer Payments,25/05/2011,386913,3216.19,REVENUE,Key2
Peterborough City Council,"Cultural, Environmental and Planning Services",Waste Collection,Transport,25/05/2011,386927,43791.6,REVENUE,Specialist Fleet Services
Peterborough City Council,More than one Service Area Category,More than one Service Division,Transport,25/05/2011,387101,662.4,REVENUE,A2B Euro Cars
Peterborough City Council,More than one Service Area Category,More than one Service Division,Transport,25/05/2011,387102,873.6,REVENUE,A2B Euro Cars
Peterborough City Council,More than one Service Area Category,More than one Service Division,Transport,25/05/2011,387103,578.4,REVENUE,A2B Euro Cars
Peterborough City Council,Children's & Education Services - Education,Non-School Funding,Transport,25/05/2011,387105,844.8,REVENUE,A2B Euro Cars
Peterborough City Council,Children's & Education Services - Education,Non-School Funding,Transport,25/05/2011,387109,1866,REVENUE,Newborough Coaches Ltd
Peterborough City Council,Children's & Education Services - Education,Non-School Funding,Transport,25/05/2011,387116,665,REVENUE,Veolia Transport UK Ltd
Peterborough City Council,Children's & Education Services - Education,Non-School Funding,Transport,25/05/2011,387117,540,REVENUE,King Cabz
Peterborough City Council,"Cultural, Environmental and Planning Services",Waste Collection,Supplies and Services,25/05/2011,387144,888,REVENUE,Duston Oils
Peterborough City Council,"Cultural, Environmental and Planning Services",Tourism,Supplies and Services,25/05/2011,387150,1152,REVENUE,Live Promotions
Peterborough City Council,Children's & Education Services - Children's Social Care,Family Support Services,Premises,25/05/2011,387154,580.8,REVENUE,Easy Clean
Peterborough City Council,Children's & Education Services - Children's Social Care,Children Looked After,Supplies and Services - Transfer Payments,25/05/2011,387174,3173.45,REVENUE,IAS TACT
Peterborough City Council,Children's & Education Services - Children's Social Care,Children Looked After,Supplies and Services - Transfer Payments,25/05/2011,387178,3207.94,REVENUE,IAS TACT
Peterborough City Council,Children's & Education Services - Children's Social Care,Children Looked After,Supplies and Services - Transfer Payments,25/05/2011,387179,2984.66,REVENUE,IAS TACT
Peterborough City Council,Children's & Education Services - Children's Social Care,Children Looked After,Supplies and Services - Transfer Payments,25/05/2011,387180,3380.41,REVENUE,IAS TACT
Peterborough City Council,Children's & Education Services - Children's Social Care,Children Looked After,Supplies and Services - Transfer Payments,25/05/2011,387182,3179.32,REVENUE,IAS TACT
Peterborough City Council,Children's & Education Services - Children's Social Care,Children Looked After,Supplies and Services - Transfer Payments,25/05/2011,387184,2791.46,REVENUE,IAS TACT
Peterborough City Council,Children's & Education Services - Children's Social Care,Children Looked After,Supplies and Services - Transfer Payments,25/05/2011,387185,2984.56,REVENUE,IAS TACT
Peterborough City Council,Children's & Education Services - Children's Social Care,Children Looked After,Supplies and Services - Transfer Payments,25/05/2011,387186,3480.37,REVENUE,IAS TACT
Peterborough City Council,Children's & Education Services - Children's Social Care,Children Looked After,Supplies and Services - Transfer Payments,25/05/2011,387189,2973.52,REVENUE,IAS TACT
Peterborough City Council,Children's & Education Services - Children's Social Care,Children Looked After,Supplies and Services - Transfer Payments,25/05/2011,387191,3179.32,REVENUE,IAS TACT
Peterborough City Council,Children's & Education Services - Children's Social Care,Children Looked After,Supplies and Services - Transfer Payments,25/05/2011,387192,2791.46,REVENUE,IAS TACT
Peterborough City Council,Children's & Education Services - Children's Social Care,Children Looked After,Supplies and Services - Transfer Payments,25/05/2011,387202,3486.98,REVENUE,IAS TACT
Peterborough City Council,Children's & Education Services - Children's Social Care,Children Looked After,Supplies and Services - Transfer Payments,25/05/2011,387204,3173.45,REVENUE,IAS TACT
Peterborough City Council,"Cultural, Environmental and Planning Services",Waste Collection,Supplies and Services,25/05/2011,387205,15862.94,REVENUE,H W Martin Waste Ltd
Peterborough City Council,Children's & Education Services - Children's Social Care,Children Looked After,Supplies and Services - Transfer Payments,25/05/2011,387207,5582.92,REVENUE,IAS TACT
Peterborough City Council,Children's & Education Services - Children's Social Care,Children Looked After,Supplies and Services - Transfer Payments,25/05/2011,387228,5677.32,REVENUE,IAS TACT
Peterborough City Council,More than one Service Area Category,More than one Service Division,Balance Sheet,25/05/2011,387273,9287.5,Balance Sheet,Sloan Plumb Wood LLP
Peterborough City Council,Capital,Capital,Capital Pending Update to BS,25/05/2011,387275,9261.58,CAPITAL,V Couzens (Stamford) Limited
Peterborough City Council,"Cultural, Environmental and Planning Services",Community Development,Supplies and Services,25/05/2011,387287,500,REVENUE,Stanground Community Association
Peterborough City Council,"Cultural, Environmental and Planning Services",Community Development,Supplies and Services,25/05/2011,387340,3500,REVENUE,Orton Longueville Parish Council
Peterborough City Council,Children's & Education Services - Education,Non-School Funding,Supplies and Services,25/05/2011,387446,900,REVENUE,Family Action
Peterborough City Council,Children's & Education Services - Education,Non-School Funding,Supplies and Services,25/05/2011,387448,720,REVENUE,Family Action
Peterborough City Council,Children's & Education Services - Education,All Schools - apportion across sectors,Premises,25/05/2011,387449,14826.6,REVENUE,Kingsgate Trading Ltd
Peterborough City Council,Children's & Education Services - Education,Non-School Funding,Supplies and Services,25/05/2011,387454,660,REVENUE,South Bretton PS Middleton
Peterborough City Council,Children's & Education Services - Education,Non-School Funding,Supplies and Services,25/05/2011,387457,585,REVENUE,Braybrook Nursery
Peterborough City Council,Children's & Education Services - Education,Non-School Funding,Supplies and Services,25/05/2011,387461,585,REVENUE,Braybrook Nursery
Peterborough City Council,Children's & Education Services - Education,Non-School Funding,Supplies and Services,25/05/2011,387463,780,REVENUE,Stepping Stones Day Nursery
Peterborough City Council,Children's & Education Services - Education,Non-School Funding,Supplies and Services,25/05/2011,387464,720,REVENUE,Herlington Pre-School
Peterborough City Council,Children's & Education Services - Education,Non-School Funding,Supplies and Services,25/05/2011,387466,648,REVENUE,Herlington Pre-School
Peterborough City Council,Children's & Education Services - Children's Social Care,Children Looked After,Transport,25/05/2011,387470,1470,REVENUE,A2B Euro Cars
Peterborough City Council,Children's & Education Services - Children's Social Care,Children Looked After,Transport,25/05/2011,387477,1092,REVENUE,Peterborough Cars
Peterborough City Council,Children's & Education Services - Education,Non-School Funding,Supplies and Services,25/05/2011,387479,720,REVENUE,Herlington Pre-School
Peterborough City Council,Children's & Education Services - Education,Non-School Funding,Supplies and Services,25/05/2011,387480,2323.2,REVENUE,St Josephs Day Nursery
Peterborough City Council,Children's & Education Services - Education,Non-School Funding,Supplies and Services,25/05/2011,387481,580.8,REVENUE,Braybrook Nursery
Peterborough City Council,Children's & Education Services - Education,Non-School Funding,Supplies and Services,25/05/2011,387482,689.7,REVENUE,Best Start Childrens Nursery
Peterborough City Council,Children's & Education Services - Education,Non-School Funding,Supplies and Services,25/05/2011,387483,1161.6,REVENUE,Family Action
Peterborough City Council,Children's & Education Services - Education,Secondary,Premises,25/05/2011,387495,2750.33,REVENUE,Npower Ltd
Peterborough City Council,"Highways, Roads & Transport Services",Street Lighting,Premises,25/05/2011,387498,49454.68,REVENUE,Southern Electric
Peterborough City Council,"Cultural, Environmental and Planning Services",Economic Development,Supplies and Services,25/05/2011,387502,1380,REVENUE,Linstock Communications Ltd
Peterborough City Council,"Highways, Roads & Transport Services",Public Transport,Supplies and Services,25/05/2011,387532,10268.2,REVENUE,Statutory Payment of Concessionary Fares to Bus Provider
Peterborough City Council,Children's & Education Services - Children's Social Care,Children Looked After,Supplies and Services - Transfer Payments,25/05/2011,387597,14614.33,REVENUE,Continuum Care & Educ. Group.
Peterborough City Council,Children's & Education Services - Children's Social Care,Family Support Services,More than one Expenses Type,25/05/2011,387621,1055.52,REVENUE,PAM Recruitment Ltd
Peterborough City Council,Deficit/(Surplus) on Trading Undertakings,Trading Account Surpluses & Deficits,Supplies and Services,25/05/2011,387629,2209.97,REVENUE,Barron Clark Castings Ltd
Peterborough City Council,Deficit/(Surplus) on Trading Undertakings,Trading Account Surpluses & Deficits,Supplies and Services,25/05/2011,387631,540.6,REVENUE,Barron Clark Castings Ltd
Peterborough City Council,Children's & Education Services - Children's Social Care,Family Support Services,Third Party Payments,25/05/2011,387635,1162.5,REVENUE,Bridgegate Drug Services
Peterborough City Council,Deficit/(Surplus) on Trading Undertakings,Trading Account Surpluses & Deficits,Supplies and Services,25/05/2011,387637,747.65,REVENUE,Barron Clark Castings Ltd
